Workbook

Sheet Menu Saisie

Sheet Synthèse
F1: Synthèse du : | G1: =IF(G36<>"",G36,MAX(Contôle!A2:A1048576)) -> 2018-04-27
F6: Synthèse Entrées /Dépenses du | G6: =IF(G36<>"",G36,MAX(Contôle!A2:A1048576)) -> 2018-04-27 | I6: Dépenses | J6: =SUMIF(F11:$F$33,"=Dépense",$I$11:$I$33) -> 0
I7: Entrées | J7: =SUMIF(F11:$F$33,"=Entrée",$I$11:$I$33) -> 723.51
E9: 4 | F9: 5 | G9: 6 | H9: 7 | I9: 8 | J9: 9 | K9: 10
E10: Date | F10: Entrée/depenses | G10: libellée | H10: Agent | I10: Montant | J10: Hors Mutix | K10: Concerne
C11: 1 | E11: =IF(ISERROR(VLOOKUP($C11,source!$K:$T,E$9,0))=FALSE,VLOOKUP($C11,source!$K:$T,E$9,0),"") -> 2018-04-26T14:06:40 | F11: =IF(ISERROR(VLOOKUP($C11,source!$K:$T,F$9,0))=FALSE,VLOOKUP($C11,source!$K:$T,F$9,0),"") -> Entrée | G11: =IF(ISERROR(VLOOKUP($C11,source!$K:$T,G$9,0))=FALSE,VLOOKUP($C11,source!$K:$T,G$9,0),"") -> espèces | H11: =IF(ISERROR(VLOOKUP($C11,source!$K:$T,H$9,0))=FALSE,VLOOKUP($C11,source!$K:$T,H$9,0),"") -> Mélanie | I11: =IF(ISERROR(VLOOKUP($C11,source!$K:$T,I$9,0))=FALSE,VLOOKUP($C11,source!$K:$T,I$9,0),"") -> 414.6 | J11: =IF(ISERROR(VLOOKUP($C11,source!$K:$T,J$9,0))=FALSE,VLOOKUP($C11,source!$K:$T,J$9,0),"") -> 0 | K11: =IF(ISERROR(VLOOKUP($C11,source!$K:$T,K$9,0))=FALSE,VLOOKUP($C11,source!$K:$T,K$9,0),"") -> 
C12: 2 | E12: =IF(ISERROR(VLOOKUP($C12,source!$K:$T,E$9,0))=FALSE,VLOOKUP($C12,source!$K:$T,E$9,0),"") -> 2018-04-26T14:06:40 | F12: =IF(ISERROR(VLOOKUP($C12,source!$K:$T,F$9,0))=FALSE,VLOOKUP($C12,source!$K:$T,F$9,0),"") -> Entrée | G12: =IF(ISERROR(VLOOKUP($C12,source!$K:$T,G$9,0))=FALSE,VLOOKUP($C12,source!$K:$T,G$9,0),"") -> espèces | H12: =IF(ISERROR(VLOOKUP($C12,source!$K:$T,H$9,0))=FALSE,VLOOKUP($C12,source!$K:$T,H$9,0),"") -> Mélanie | I12: =IF(ISERROR(VLOOKUP($C12,source!$K:$T,I$9,0))=FALSE,VLOOKUP($C12,source!$K:$T,I$9,0),"") -> 308.91 | J12: =IF(ISERROR(VLOOKUP($C12,source!$K:$T,J$9,0))=FALSE,VLOOKUP($C12,source!$K:$T,J$9,0),"") -> 0 | K12: =IF(ISERROR(VLOOKUP($C12,source!$K:$T,K$9,0))=FALSE,VLOOKUP($C12,source!$K:$T,K$9,0),"") -> 
C13: 3 | E13: =IF(ISERROR(VLOOKUP($C13,source!$K:$T,E$9,0))=FALSE,VLOOKUP($C13,source!$K:$T,E$9,0),"") ->  | F13: =IF(ISERROR(VLOOKUP($C13,source!$K:$T,F$9,0))=FALSE,VLOOKUP($C13,source!$K:$T,F$9,0),"") ->  | G13: =IF(ISERROR(VLOOKUP($C13,source!$K:$T,G$9,0))=FALSE,VLOOKUP($C13,source!$K:$T,G$9,0),"") ->  | H13: =IF(ISERROR(VLOOKUP($C13,source!$K:$T,H$9,0))=FALSE,VLOOKUP($C13,source!$K:$T,H$9,0),"") ->  | I13: =IF(ISERROR(VLOOKUP($C13,source!$K:$T,I$9,0))=FALSE,VLOOKUP($C13,source!$K:$T,I$9,0),"") ->  | J13: =IF(ISERROR(VLOOKUP($C13,source!$K:$T,J$9,0))=FALSE,VLOOKUP($C13,source!$K:$T,J$9,0),"") ->  | K13: =IF(ISERROR(VLOOKUP($C13,source!$K:$T,K$9,0))=FALSE,VLOOKUP($C13,source!$K:$T,K$9,0),"") -> 
C14: 4 | E14: =IF(ISERROR(VLOOKUP($C14,source!$K:$T,E$9,0))=FALSE,VLOOKUP($C14,source!$K:$T,E$9,0),"") ->  | F14: =IF(ISERROR(VLOOKUP($C14,source!$K:$T,F$9,0))=FALSE,VLOOKUP($C14,source!$K:$T,F$9,0),"") ->  | G14: =IF(ISERROR(VLOOKUP($C14,source!$K:$T,G$9,0))=FALSE,VLOOKUP($C14,source!$K:$T,G$9,0),"") ->  | H14: =IF(ISERROR(VLOOKUP($C14,source!$K:$T,H$9,0))=FALSE,VLOOKUP($C14,source!$K:$T,H$9,0),"") ->  | I14: =IF(ISERROR(VLOOKUP($C14,source!$K:$T,I$9,0))=FALSE,VLOOKUP($C14,source!$K:$T,I$9,0),"") ->  | J14: =IF(ISERROR(VLOOKUP($C14,source!$K:$T,J$9,0))=FALSE,VLOOKUP($C14,source!$K:$T,J$9,0),"") ->  | K14: =IF(ISERROR(VLOOKUP($C14,source!$K:$T,K$9,0))=FALSE,VLOOKUP($C14,source!$K:$T,K$9,0),"") -> 
C15: 5 | E15: =IF(ISERROR(VLOOKUP($C15,source!$K:$T,E$9,0))=FALSE,VLOOKUP($C15,source!$K:$T,E$9,0),"") ->  | F15: =IF(ISERROR(VLOOKUP($C15,source!$K:$T,F$9,0))=FALSE,VLOOKUP($C15,source!$K:$T,F$9,0),"") ->  | G15: =IF(ISERROR(VLOOKUP($C15,source!$K:$T,G$9,0))=FALSE,VLOOKUP($C15,source!$K:$T,G$9,0),"") ->  | H15: =IF(ISERROR(VLOOKUP($C15,source!$K:$T,H$9,0))=FALSE,VLOOKUP($C15,source!$K:$T,H$9,0),"") ->  | I15: =IF(ISERROR(VLOOKUP($C15,source!$K:$T,I$9,0))=FALSE,VLOOKUP($C15,source!$K:$T,I$9,0),"") ->  | J15: =IF(ISERROR(VLOOKUP($C15,source!$K:$T,J$9,0))=FALSE,VLOOKUP($C15,source!$K:$T,J$9,0),"") ->  | K15: =IF(ISERROR(VLOOKUP($C15,source!$K:$T,K$9,0))=FALSE,VLOOKUP($C15,source!$K:$T,K$9,0),"") -> 
C16: 6 | E16: =IF(ISERROR(VLOOKUP($C16,source!$K:$T,E$9,0))=FALSE,VLOOKUP($C16,source!$K:$T,E$9,0),"") ->  | F16: =IF(ISERROR(VLOOKUP($C16,source!$K:$T,F$9,0))=FALSE,VLOOKUP($C16,source!$K:$T,F$9,0),"") ->  | G16: =IF(ISERROR(VLOOKUP($C16,source!$K:$T,G$9,0))=FALSE,VLOOKUP($C16,source!$K:$T,G$9,0),"") ->  | H16: =IF(ISERROR(VLOOKUP($C16,source!$K:$T,H$9,0))=FALSE,VLOOKUP($C16,source!$K:$T,H$9,0),"") ->  | I16: =IF(ISERROR(VLOOKUP($C16,source!$K:$T,I$9,0))=FALSE,VLOOKUP($C16,source!$K:$T,I$9,0),"") ->  | J16: =IF(ISERROR(VLOOKUP($C16,source!$K:$T,J$9,0))=FALSE,VLOOKUP($C16,source!$K:$T,J$9,0),"") ->  | K16: =IF(ISERROR(VLOOKUP($C16,source!$K:$T,K$9,0))=FALSE,VLOOKUP($C16,source!$K:$T,K$9,0),"") -> 
C17: 7 | E17: =IF(ISERROR(VLOOKUP($C17,source!$K:$T,E$9,0))=FALSE,VLOOKUP($C17,source!$K:$T,E$9,0),"") ->  | F17: =IF(ISERROR(VLOOKUP($C17,source!$K:$T,F$9,0))=FALSE,VLOOKUP($C17,source!$K:$T,F$9,0),"") ->  | G17: =IF(ISERROR(VLOOKUP($C17,source!$K:$T,G$9,0))=FALSE,VLOOKUP($C17,source!$K:$T,G$9,0),"") ->  | H17: =IF(ISERROR(VLOOKUP($C17,source!$K:$T,H$9,0))=FALSE,VLOOKUP($C17,source!$K:$T,H$9,0),"") ->  | I17: =IF(ISERROR(VLOOKUP($C17,source!$K:$T,I$9,0))=FALSE,VLOOKUP($C17,source!$K:$T,I$9,0),"") ->  | J17: =IF(ISERROR(VLOOKUP($C17,source!$K:$T,J$9,0))=FALSE,VLOOKUP($C17,source!$K:$T,J$9,0),"") ->  | K17: =IF(ISERROR(VLOOKUP($C17,source!$K:$T,K$9,0))=FALSE,VLOOKUP($C17,source!$K:$T,K$9,0),"") -> 
C18: 8 | E18: =IF(ISERROR(VLOOKUP($C18,source!$K:$T,E$9,0))=FALSE,VLOOKUP($C18,source!$K:$T,E$9,0),"") ->  | F18: =IF(ISERROR(VLOOKUP($C18,source!$K:$T,F$9,0))=FALSE,VLOOKUP($C18,source!$K:$T,F$9,0),"") ->  | G18: =IF(ISERROR(VLOOKUP($C18,source!$K:$T,G$9,0))=FALSE,VLOOKUP($C18,source!$K:$T,G$9,0),"") ->  | H18: =IF(ISERROR(VLOOKUP($C18,source!$K:$T,H$9,0))=FALSE,VLOOKUP($C18,source!$K:$T,H$9,0),"") ->  | I18: =IF(ISERROR(VLOOKUP($C18,source!$K:$T,I$9,0))=FALSE,VLOOKUP($C18,source!$K:$T,I$9,0),"") ->  | J18: =IF(ISERROR(VLOOKUP($C18,source!$K:$T,J$9,0))=FALSE,VLOOKUP($C18,source!$K:$T,J$9,0),"") ->  | K18: =IF(ISERROR(VLOOKUP($C18,source!$K:$T,K$9,0))=FALSE,VLOOKUP($C18,source!$K:$T,K$9,0),"") -> 
C19: 9 | E19: =IF(ISERROR(VLOOKUP($C19,source!$K:$T,E$9,0))=FALSE,VLOOKUP($C19,source!$K:$T,E$9,0),"") ->  | F19: =IF(ISERROR(VLOOKUP($C19,source!$K:$T,F$9,0))=FALSE,VLOOKUP($C19,source!$K:$T,F$9,0),"") ->  | G19: =IF(ISERROR(VLOOKUP($C19,source!$K:$T,G$9,0))=FALSE,VLOOKUP($C19,source!$K:$T,G$9,0),"") ->  | H19: =IF(ISERROR(VLOOKUP($C19,source!$K:$T,H$9,0))=FALSE,VLOOKUP($C19,source!$K:$T,H$9,0),"") ->  | I19: =IF(ISERROR(VLOOKUP($C19,source!$K:$T,I$9,0))=FALSE,VLOOKUP($C19,source!$K:$T,I$9,0),"") ->  | J19: =IF(ISERROR(VLOOKUP($C19,source!$K:$T,J$9,0))=FALSE,VLOOKUP($C19,source!$K:$T,J$9,0),"") ->  | K19: =IF(ISERROR(VLOOKUP($C19,source!$K:$T,K$9,0))=FALSE,VLOOKUP($C19,source!$K:$T,K$9,0),"") -> 
C20: 10 | E20: =IF(ISERROR(VLOOKUP($C20,source!$K:$T,E$9,0))=FALSE,VLOOKUP($C20,source!$K:$T,E$9,0),"") ->  | F20: =IF(ISERROR(VLOOKUP($C20,source!$K:$T,F$9,0))=FALSE,VLOOKUP($C20,source!$K:$T,F$9,0),"") ->  | G20: =IF(ISERROR(VLOOKUP($C20,source!$K:$T,G$9,0))=FALSE,VLOOKUP($C20,source!$K:$T,G$9,0),"") ->  | H20: =IF(ISERROR(VLOOKUP($C20,source!$K:$T,H$9,0))=FALSE,VLOOKUP($C20,source!$K:$T,H$9,0),"") ->  | I20: =IF(ISERROR(VLOOKUP($C20,source!$K:$T,I$9,0))=FALSE,VLOOKUP($C20,source!$K:$T,I$9,0),"") ->  | J20: =IF(ISERROR(VLOOKUP($C20,source!$K:$T,J$9,0))=FALSE,VLOOKUP($C20,source!$K:$T,J$9,0),"") ->  | K20: =IF(ISERROR(VLOOKUP($C20,source!$K:$T,K$9,0))=FALSE,VLOOKUP($C20,source!$K:$T,K$9,0),"") -> 
C21: 11 | E21: =IF(ISERROR(VLOOKUP($C21,source!$K:$T,E$9,0))=FALSE,VLOOKUP($C21,source!$K:$T,E$9,0),"") ->  | F21: =IF(ISERROR(VLOOKUP($C21,source!$K:$T,F$9,0))=FALSE,VLOOKUP($C21,source!$K:$T,F$9,0),"") ->  | G21: =IF(ISERROR(VLOOKUP($C21,source!$K:$T,G$9,0))=FALSE,VLOOKUP($C21,source!$K:$T,G$9,0),"") ->  | H21: =IF(ISERROR(VLOOKUP($C21,source!$K:$T,H$9,0))=FALSE,VLOOKUP($C21,source!$K:$T,H$9,0),"") ->  | I21: =IF(ISERROR(VLOOKUP($C21,source!$K:$T,I$9,0))=FALSE,VLOOKUP($C21,source!$K:$T,I$9,0),"") ->  | J21: =IF(ISERROR(VLOOKUP($C21,source!$K:$T,J$9,0))=FALSE,VLOOKUP($C21,source!$K:$T,J$9,0),"") ->  | K21: =IF(ISERROR(VLOOKUP($C21,source!$K:$T,K$9,0))=FALSE,VLOOKUP($C21,source!$K:$T,K$9,0),"") -> 
C22: 12 | E22: =IF(ISERROR(VLOOKUP($C22,source!$K:$T,E$9,0))=FALSE,VLOOKUP($C22,source!$K:$T,E$9,0),"") ->  | F22: =IF(ISERROR(VLOOKUP($C22,source!$K:$T,F$9,0))=FALSE,VLOOKUP($C22,source!$K:$T,F$9,0),"") ->  | G22: =IF(ISERROR(VLOOKUP($C22,source!$K:$T,G$9,0))=FALSE,VLOOKUP($C22,source!$K:$T,G$9,0),"") ->  | H22: =IF(ISERROR(VLOOKUP($C22,source!$K:$T,H$9,0))=FALSE,VLOOKUP($C22,source!$K:$T,H$9,0),"") ->  | I22: =IF(ISERROR(VLOOKUP($C22,source!$K:$T,I$9,0))=FALSE,VLOOKUP($C22,source!$K:$T,I$9,0),"") ->  | J22: =IF(ISERROR(VLOOKUP($C22,source!$K:$T,J$9,0))=FALSE,VLOOKUP($C22,source!$K:$T,J$9,0),"") ->  | K22: =IF(ISERROR(VLOOKUP($C22,source!$K:$T,K$9,0))=FALSE,VLOOKUP($C22,source!$K:$T,K$9,0),"") -> 
C23: 13 | E23: =IF(ISERROR(VLOOKUP($C23,source!$K:$T,E$9,0))=FALSE,VLOOKUP($C23,source!$K:$T,E$9,0),"") ->  | F23: =IF(ISERROR(VLOOKUP($C23,source!$K:$T,F$9,0))=FALSE,VLOOKUP($C23,source!$K:$T,F$9,0),"") ->  | G23: =IF(ISERROR(VLOOKUP($C23,source!$K:$T,G$9,0))=FALSE,VLOOKUP($C23,source!$K:$T,G$9,0),"") ->  | H23: =IF(ISERROR(VLOOKUP($C23,source!$K:$T,H$9,0))=FALSE,VLOOKUP($C23,source!$K:$T,H$9,0),"") ->  | I23: =IF(ISERROR(VLOOKUP($C23,source!$K:$T,I$9,0))=FALSE,VLOOKUP($C23,source!$K:$T,I$9,0),"") ->  | J23: =IF(ISERROR(VLOOKUP($C23,source!$K:$T,J$9,0))=FALSE,VLOOKUP($C23,source!$K:$T,J$9,0),"") ->  | K23: =IF(ISERROR(VLOOKUP($C23,source!$K:$T,K$9,0))=FALSE,VLOOKUP($C23,source!$K:$T,K$9,0),"") -> 
C24: 14 | E24: =IF(ISERROR(VLOOKUP($C24,source!$K:$T,E$9,0))=FALSE,VLOOKUP($C24,source!$K:$T,E$9,0),"") ->  | F24: =IF(ISERROR(VLOOKUP($C24,source!$K:$T,F$9,0))=FALSE,VLOOKUP($C24,source!$K:$T,F$9,0),"") ->  | G24: =IF(ISERROR(VLOOKUP($C24,source!$K:$T,G$9,0))=FALSE,VLOOKUP($C24,source!$K:$T,G$9,0),"") ->  | H24: =IF(ISERROR(VLOOKUP($C24,source!$K:$T,H$9,0))=FALSE,VLOOKUP($C24,source!$K:$T,H$9,0),"") ->  | I24: =IF(ISERROR(VLOOKUP($C24,source!$K:$T,I$9,0))=FALSE,VLOOKUP($C24,source!$K:$T,I$9,0),"") ->  | J24: =IF(ISERROR(VLOOKUP($C24,source!$K:$T,J$9,0))=FALSE,VLOOKUP($C24,source!$K:$T,J$9,0),"") ->  | K24: =IF(ISERROR(VLOOKUP($C24,source!$K:$T,K$9,0))=FALSE,VLOOKUP($C24,source!$K:$T,K$9,0),"") -> 
C25: 15 | E25: =IF(ISERROR(VLOOKUP($C25,source!$K:$T,E$9,0))=FALSE,VLOOKUP($C25,source!$K:$T,E$9,0),"") ->  | F25: =IF(ISERROR(VLOOKUP($C25,source!$K:$T,F$9,0))=FALSE,VLOOKUP($C25,source!$K:$T,F$9,0),"") ->  | G25: =IF(ISERROR(VLOOKUP($C25,source!$K:$T,G$9,0))=FALSE,VLOOKUP($C25,source!$K:$T,G$9,0),"") ->  | H25: =IF(ISERROR(VLOOKUP($C25,source!$K:$T,H$9,0))=FALSE,VLOOKUP($C25,source!$K:$T,H$9,0),"") ->  | I25: =IF(ISERROR(VLOOKUP($C25,source!$K:$T,I$9,0))=FALSE,VLOOKUP($C25,source!$K:$T,I$9,0),"") ->  | J25: =IF(ISERROR(VLOOKUP($C25,source!$K:$T,J$9,0))=FALSE,VLOOKUP($C25,source!$K:$T,J$9,0),"") ->  | K25: =IF(ISERROR(VLOOKUP($C25,source!$K:$T,K$9,0))=FALSE,VLOOKUP($C25,source!$K:$T,K$9,0),"") -> 
C26: 16 | E26: =IF(ISERROR(VLOOKUP($C26,source!$K:$T,E$9,0))=FALSE,VLOOKUP($C26,source!$K:$T,E$9,0),"") ->  | F26: =IF(ISERROR(VLOOKUP($C26,source!$K:$T,F$9,0))=FALSE,VLOOKUP($C26,source!$K:$T,F$9,0),"") ->  | G26: =IF(ISERROR(VLOOKUP($C26,source!$K:$T,G$9,0))=FALSE,VLOOKUP($C26,source!$K:$T,G$9,0),"") ->  | H26: =IF(ISERROR(VLOOKUP($C26,source!$K:$T,H$9,0))=FALSE,VLOOKUP($C26,source!$K:$T,H$9,0),"") ->  | I26: =IF(ISERROR(VLOOKUP($C26,source!$K:$T,I$9,0))=FALSE,VLOOKUP($C26,source!$K:$T,I$9,0),"") ->  | J26: =IF(ISERROR(VLOOKUP($C26,source!$K:$T,J$9,0))=FALSE,VLOOKUP($C26,source!$K:$T,J$9,0),"") ->  | K26: =IF(ISERROR(VLOOKUP($C26,source!$K:$T,K$9,0))=FALSE,VLOOKUP($C26,source!$K:$T,K$9,0),"") -> 
C27: 17 | E27: =IF(ISERROR(VLOOKUP($C27,source!$K:$T,E$9,0))=FALSE,VLOOKUP($C27,source!$K:$T,E$9,0),"") ->  | F27: =IF(ISERROR(VLOOKUP($C27,source!$K:$T,F$9,0))=FALSE,VLOOKUP($C27,source!$K:$T,F$9,0),"") ->  | G27: =IF(ISERROR(VLOOKUP($C27,source!$K:$T,G$9,0))=FALSE,VLOOKUP($C27,source!$K:$T,G$9,0),"") ->  | H27: =IF(ISERROR(VLOOKUP($C27,source!$K:$T,H$9,0))=FALSE,VLOOKUP($C27,source!$K:$T,H$9,0),"") ->  | I27: =IF(ISERROR(VLOOKUP($C27,source!$K:$T,I$9,0))=FALSE,VLOOKUP($C27,source!$K:$T,I$9,0),"") ->  | J27: =IF(ISERROR(VLOOKUP($C27,source!$K:$T,J$9,0))=FALSE,VLOOKUP($C27,source!$K:$T,J$9,0),"") ->  | K27: =IF(ISERROR(VLOOKUP($C27,source!$K:$T,K$9,0))=FALSE,VLOOKUP($C27,source!$K:$T,K$9,0),"") -> 
C28: 18 | E28: =IF(ISERROR(VLOOKUP($C28,source!$K:$T,E$9,0))=FALSE,VLOOKUP($C28,source!$K:$T,E$9,0),"") ->  | F28: =IF(ISERROR(VLOOKUP($C28,source!$K:$T,F$9,0))=FALSE,VLOOKUP($C28,source!$K:$T,F$9,0),"") ->  | G28: =IF(ISERROR(VLOOKUP($C28,source!$K:$T,G$9,0))=FALSE,VLOOKUP($C28,source!$K:$T,G$9,0),"") ->  | H28: =IF(ISERROR(VLOOKUP($C28,source!$K:$T,H$9,0))=FALSE,VLOOKUP($C28,source!$K:$T,H$9,0),"") ->  | I28: =IF(ISERROR(VLOOKUP($C28,source!$K:$T,I$9,0))=FALSE,VLOOKUP($C28,source!$K:$T,I$9,0),"") ->  | J28: =IF(ISERROR(VLOOKUP($C28,source!$K:$T,J$9,0))=FALSE,VLOOKUP($C28,source!$K:$T,J$9,0),"") ->  | K28: =IF(ISERROR(VLOOKUP($C28,source!$K:$T,K$9,0))=FALSE,VLOOKUP($C28,source!$K:$T,K$9,0),"") -> 
C29: 19 | E29: =IF(ISERROR(VLOOKUP($C29,source!$K:$T,E$9,0))=FALSE,VLOOKUP($C29,source!$K:$T,E$9,0),"") ->  | F29: =IF(ISERROR(VLOOKUP($C29,source!$K:$T,F$9,0))=FALSE,VLOOKUP($C29,source!$K:$T,F$9,0),"") ->  | G29: =IF(ISERROR(VLOOKUP($C29,source!$K:$T,G$9,0))=FALSE,VLOOKUP($C29,source!$K:$T,G$9,0),"") ->  | H29: =IF(ISERROR(VLOOKUP($C29,source!$K:$T,H$9,0))=FALSE,VLOOKUP($C29,source!$K:$T,H$9,0),"") ->  | I29: =IF(ISERROR(VLOOKUP($C29,source!$K:$T,I$9,0))=FALSE,VLOOKUP($C29,source!$K:$T,I$9,0),"") ->  | J29: =IF(ISERROR(VLOOKUP($C29,source!$K:$T,J$9,0))=FALSE,VLOOKUP($C29,source!$K:$T,J$9,0),"") ->  | K29: =IF(ISERROR(VLOOKUP($C29,source!$K:$T,K$9,0))=FALSE,VLOOKUP($C29,source!$K:$T,K$9,0),"") -> 
C30: 20 | E30: =IF(ISERROR(VLOOKUP($C30,source!$K:$T,E$9,0))=FALSE,VLOOKUP($C30,source!$K:$T,E$9,0),"") ->  | F30: =IF(ISERROR(VLOOKUP($C30,source!$K:$T,F$9,0))=FALSE,VLOOKUP($C30,source!$K:$T,F$9,0),"") ->  | G30: =IF(ISERROR(VLOOKUP($C30,source!$K:$T,G$9,0))=FALSE,VLOOKUP($C30,source!$K:$T,G$9,0),"") ->  | H30: =IF(ISERROR(VLOOKUP($C30,source!$K:$T,H$9,0))=FALSE,VLOOKUP($C30,source!$K:$T,H$9,0),"") ->  | I30: =IF(ISERROR(VLOOKUP($C30,source!$K:$T,I$9,0))=FALSE,VLOOKUP($C30,source!$K:$T,I$9,0),"") ->  | J30: =IF(ISERROR(VLOOKUP($C30,source!$K:$T,J$9,0))=FALSE,VLOOKUP($C30,source!$K:$T,J$9,0),"") ->  | K30: =IF(ISERROR(VLOOKUP($C30,source!$K:$T,K$9,0))=FALSE,VLOOKUP($C30,source!$K:$T,K$9,0),"") -> 
F35: Contrôle de la caisse du: | G35: =IF(G36<>"",G36,MAX(Contôle!A2:A1048576)) -> 2018-04-27
F36: Ou Je choisi une date:
E38: € | F38: COFFRE | G38: CAISSE | H38: TOTAL
A39: 5 | B39: 6 | E39: 500 | F39: =VLOOKUP($G$35,Contôle!$A:$AX,Synthèse!A39,0)*E39 -> 0 | G39: =E39*VLOOKUP($G$35,Contôle!$A:$AX,Synthèse!B39,0) -> 0 | H39: =SUM(F39,G39) -> 0
A40: =+A39+3 -> 8 | B40: =+B39+3 -> 9 | E40: 200 | F40: =VLOOKUP($G$35,Contôle!$A:$AX,Synthèse!A40,0)*E40 -> 0 | G40: =E40*VLOOKUP($G$35,Contôle!$A:$AX,Synthèse!B40,0) -> 0 | H40: =SUM(F40,G40) -> 0
A41: =+A40+3 -> 11 | B41: =+B40+3 -> 12 | E41: 100 | F41: =VLOOKUP($G$35,Contôle!$A:$AX,Synthèse!A41,0)*E41 -> 100 | G41: =E41*VLOOKUP($G$35,Contôle!$A:$AX,Synthèse!B41,0) -> 0 | H41: 100
A42: 14 | B42: 15 | E42: 50 | F42: =VLOOKUP($G$35,Contôle!$A:$AX,Synthèse!A42,0)*E42 -> 2750 | G42: =E42*VLOOKUP($G$35,Contôle!$A:$AX,Synthèse!B42,0) -> 0 | H42: 2750
A43: 17 | B43: 18 | E43: 20 | F43: =VLOOKUP($G$35,Contôle!$A:$AX,Synthèse!A43,0)*E43 -> 960 | G43: =E43*VLOOKUP($G$35,Contôle!$A:$AX,Synthèse!B43,0) -> 0 | H43: 960
A44: 20 | B44: 21 | E44: 10 | F44: =VLOOKUP($G$35,Contôle!$A:$AX,Synthèse!A44,0)*E44 -> 0 | G44: =E44*VLOOKUP($G$35,Contôle!$A:$AX,Synthèse!B44,0) -> 10 | H44: 10
A45: 23 | B45: 24 | E45: 5 | F45: =VLOOKUP($G$35,Contôle!$A:$AX,Synthèse!A45,0)*E45 -> 0 | G45: =E45*VLOOKUP($G$35,Contôle!$A:$AX,Synthèse!B45,0) -> 25 | H45: 25
A46: 26 | B46: 27 | E46: 2 | F46: =VLOOKUP($G$35,Contôle!$A:$AX,Synthèse!A46,0)*E46 -> 100 | G46: =E46*VLOOKUP($G$35,Contôle!$A:$AX,Synthèse!B46,0) -> 0 | H46: 100
A47: 29 | B47: 30 | E47: 1 | F47: =VLOOKUP($G$35,Contôle!$A:$AX,Synthèse!A47,0)*E47 -> 200 | G47: =E47*VLOOKUP($G$35,Contôle!$A:$AX,Synthèse!B47,0) -> 15 | H47: 215
A48: 32 | B48: 33 | E48: 0.5 | F48: =VLOOKUP($G$35,Contôle!$A:$AX,Synthèse!A48,0)*E48 -> 80 | G48: =E48*VLOOKUP($G$35,Contôle!$A:$AX,Synthèse!B48,0) -> 9.5 | H48: 89.5
A49: 35 | B49: 36 | E49: 0.2 | F49: =VLOOKUP($G$35,Contôle!$A:$AX,Synthèse!A49,0)*E49 -> 24 | G49: =E49*VLOOKUP($G$35,Contôle!$A:$AX,Synthèse!B49,0) -> 11.6 | H49: 35.6
A50: 38 | B50: 39 | E50: 0.1 | F50: =VLOOKUP($G$35,Contôle!$A:$AX,Synthèse!A50,0)*E50 -> 4 | G50: =E50*VLOOKUP($G$35,Contôle!$A:$AX,Synthèse!B50,0) -> 6.1 | H50: 10.1
A51: 41 | B51: 42 | E51: 0.05 | F51: =VLOOKUP($G$35,Contôle!$A:$AX,Synthèse!A51,0)*E51 -> 7.5 | G51: =E51*VLOOKUP($G$35,Contôle!$A:$AX,Synthèse!B51,0) -> 3.75 | H51: 11.25
A52: 44 | B52: 45 | E52: 0.02 | F52: =VLOOKUP($G$35,Contôle!$A:$AX,Synthèse!A52,0)*E52 -> 1 | G52: =E52*VLOOKUP($G$35,Contôle!$A:$AX,Synthèse!B52,0) -> 0 | H52: 1
A53: 47 | B53: 48 | E53: 0.01 | F53: =VLOOKUP($G$35,Contôle!$A:$AX,Synthèse!A53,0)*E53 -> 0.5 | G53: =E53*VLOOKUP($G$35,Contôle!$A:$AX,Synthèse!B53,0) -> 0.02 | H53: 0.52
E54: TOTAL | F54: =SUM(F39:F53) -> 4227 | G54: =SUM(G39:G53) -> 80.97 | H54: =SUM(H39:H53) -> 4307.97
E56: Rapprochement Caisse/Contrôle:
F58: Date dernier contrôle caisse: | G58: =LARGE(Contôle!$A:$A,2) -> 2018-04-19
E59: Solde Ancienne caisse | G59: =IF(AND(G36<>"",(OR(G35<=43175,G36<=43175))), 1546.76,VLOOKUP(G58,Contôle!$A:$AX,50,0)) -> 3584.46
E60: Total Entrées: | G60: =J7 -> 723.51
E61: - Dont Hors Mutix: | G61: =SUMIFS($J$11:$J$33,$F$11:$F$33,"=Entrée",$J$11:$J$33,"=1") -> 0
E62: Total Dépenses: | G62: =J6 -> 0
E63: Solde Caisse | G63: =G59+G60-G62 -> 4307.97 | H63: =IF(G63=H54,"Contrôle caisse OK",IF(H54>G63,"Solde positif de "&H54-G63,IF(H54<G63,"Solde négatif de "&H54-G63,""))) -> Contrôle caisse OK

Sheet source
A1: Date | B1: Agent | C1: Montant Entrées | D1: Hors Mutix | E1: Commentaire Entrées | F1: Montant Dépenses | G1: Concerne | H1: Commentaire Dépenses | I1: Mois de saisie | J1: date saisie | K1: 0 | M1: Date | N1: date saisie | O1: Entrée/depenses | P1: libellée | Q1: Agent | R1: Montant | S1: Hors Mutix | T1: Concerne
A2: 2018-08-03 | B2: Mélanie | D2: FALSE | F2: 49.5 | G2: Gilles | H2: FD | J2: 2018-03-16 | K2: =IF(AND(Synthèse!$G$6=43175,J2=43175),K1+1,(IF(AND(J2>Synthèse!$G$58,J2<=Synthèse!$G$6),source!K1+1,0))) -> 0 | M2: =IF(K2>0,A2,"") ->  | N2: =IF(K2>0,J2,"") ->  | O2: =IF(AND(K2>0,C2<>""),"Entrée",(IF(AND(K2>0,F2<>""),"Dépense",""))) ->  | P2: =IF(O2="Entrée",E2,(IF(O2="Dépense",H2,""))) ->  | Q2: =IF(K2>0,B2,"") ->  | R2: =IF(O2="Entrée",C2,(IF(O2="Dépense",F2,""))) ->  | S2: =IF(AND(O2="Entrée",D2="Vrai"),1,0) -> 0 | T2: =(IF(O2="Dépense",G2,"")) -> 
A3: 14/03/2018 | B3: Mélanie | D3: FALSE | F3: 3.12 | G3: Paul | H3: Aldi(Eau) | J3: 2018-03-16 | K3: =IF(AND(Synthèse!$G$6=43175,J3=43175),K2+1,(IF(AND(J3>Synthèse!$G$58,J3<=Synthèse!$G$6),source!K2+1,0))) -> 0 | M3: =IF(K3>0,A3,"") ->  | N3: =IF(K3>0,J3,"") ->  | P3: =IF(O3="Entrée",E3,(IF(O3="Dépense",H3,""))) ->  | Q3: =IF(K3>0,B3,"") ->  | R3: =IF(O3="Entrée",C3,(IF(O3="Dépense",F3,""))) ->  | S3: =IF(AND(O3="Entrée",D3="Vrai"),1,0) -> 0 | T3: =(IF(O3="Dépense",G3,"")) -> 
A4: 14/03/2018 | B4: Mélanie | D4: FALSE | F4: 1.56 | G4: Paul | H4: Aldi (eau) | J4: 2018-03-16 | K4: =IF(AND(Synthèse!$G$6=43175,J4=43175),K3+1,(IF(AND(J4>Synthèse!$G$58,J4<=Synthèse!$G$6),source!K3+1,0))) -> 0 | S4: 0
A5: 16/03/2018 | B5: Mélanie | C5: 1565.55 | D5: FALSE | E5: espèces | J5: 2018-03-16 | K5: =IF(AND(Synthèse!$G$6=43175,J5=43175),K4+1,(IF(AND(J5>Synthèse!$G$58,J5<=Synthèse!$G$6),source!K4+1,0))) -> 0 | S5: 0
A6: 2018-02-03 | B6: Mélanie | C6: 13.2 | D6: TRUE | E6: frais de livraison | J6: 2018-03-16 | K6: =IF(AND(Synthèse!$G$6=43175,J6=43175),K5+1,(IF(AND(J6>Synthèse!$G$58,J6<=Synthèse!$G$6),source!K5+1,0))) -> 0 | S6: 0
A7: 21/03/2018 | B7: Mélanie | D7: FALSE | F7: 19.03 | G7: Mélanie | H7: Intermarché (thé+café) | J7: 2018-03-30 | K7: =IF(AND(Synthèse!$G$6=43175,J7=43175),K6+1,(IF(AND(J7>Synthèse!$G$58,J7<=Synthèse!$G$6),source!K6+1,0))) -> 0 | N7: =IF(K7>0,J7,"") ->  | O7: =IF(AND(K7>0,C7<>""),"Entrée",(IF(AND(K7>0,F7<>""),"Dépense",""))) ->  | P7: =IF(O7="Entrée",E7,(IF(O7="Dépense",H7,""))) ->  | R7: =IF(O7="Entrée",C7,(IF(O7="Dépense",F7,""))) ->  | S7: 0
A8: 23/03/2018 | B8: Mélanie | D8: FALSE | F8: 25.9 | G8: Marie Claude | H8: la poste (lettre suivie) | J8: 2018-03-30 | K8: =IF(AND(Synthèse!$G$6=43175,J8=43175),K7+1,(IF(AND(J8>Synthèse!$G$58,J8<=Synthèse!$G$6),source!K7+1,0))) -> 0 | O8: =IF(AND(K8>0,C8<>""),"Entrée",(IF(AND(K8>0,F8<>""),"Dépense",""))) ->  | P8: =IF(O8="Entrée",E8,(IF(O8="Dépense",H8,""))) ->  | R8: =IF(O8="Entrée",C8,(IF(O8="Dépense",F8,""))) ->  | S8: 0
A9: 14/03/2018 | B9: Mélanie | D9: FALSE | F9: 8.96 | G9: Nadine | H9: Auchan (cappuccino) | J9: 2018-03-30 | K9: =IF(AND(Synthèse!$G$6=43175,J9=43175),K8+1,(IF(AND(J9>Synthèse!$G$58,J9<=Synthèse!$G$6),source!K8+1,0))) -> 0 | S9: 0
A10: 16/03/2018 | B10: Mélanie | C10: 316.74 | D10: FALSE | E10: espèces | J10: 2018-03-30 | K10: =IF(AND(Synthèse!$G$6=43175,J10=43175),K9+1,(IF(AND(J10>Synthèse!$G$58,J10<=Synthèse!$G$6),source!K9+1,0))) -> 0 | S10: 0
A11: 2018-03-06 | B11: Mélanie | D11: FALSE | F11: 3.12 | G11: Gilles | H11: Aldi (eau) | J11: 2018-04-06 | K11: =IF(AND(Synthèse!$G$6=43175,J11=43175),K10+1,(IF(AND(J11>Synthèse!$G$58,J11<=Synthèse!$G$6),source!K10+1,0))) -> 0 | M11: =IF(K11>0,A11,"") ->  | N11: =IF(K11>0,J11,"") ->  | O11: =IF(AND(K11>0,C11<>""),"Entrée",(IF(AND(K11>0,F11<>""),"Dépense",""))) ->  | S11: 0
A12: 2018-04-04 | B12: Mélanie | D12: FALSE | F12: 33.75 | G12: Michelle | H12: Aldi divers | J12: 2018-04-06 | K12: =IF(AND(Synthèse!$G$6=43175,J12=43175),K11+1,(IF(AND(J12>Synthèse!$G$58,J12<=Synthèse!$G$6),source!K11+1,0))) -> 0 | S12: 0
A13: 2018-04-05 | B13: Mélanie | F13: 900 | G13: Paul | H13: Dépôt à la banque d'espèces | J13: 2018-04-06 | K13: =IF(AND(Synthèse!$G$6=43175,J13=43175),K12+1,(IF(AND(J13>Synthèse!$G$58,J13<=Synthèse!$G$6),source!K12+1,0))) -> 0 | S13: 0
A14: 2018-04-06 | B14: Mélanie | F14: 50.46 | G14: Nadine | H14: Auchan( divers) | J14: 2018-04-06 | K14: =IF(AND(Synthèse!$G$6=43175,J14=43175),K13+1,(IF(AND(J14>Synthèse!$G$58,J14<=Synthèse!$G$6),source!K13+1,0))) -> 0 | S14: 0
A15: 06/04/2018 | B15: Mélanie | C15: 657.09 | D15: FALSE | E15: espèces | J15: 2018-04-06 | K15: =IF(AND(Synthèse!$G$6=43175,J15=43175),K14+1,(IF(AND(J15>Synthèse!$G$58,J15<=Synthèse!$G$6),source!K14+1,0))) -> 0 | S15: 0
A16: 06/04/2018 | B16: Mélanie | D16: FALSE | F16: 64.85 | G16: Nadine | H16: Auchan (Boissons) | J16: 2018-04-10T16:35:50 | K16: =IF(AND(Synthèse!$G$6=43175,J16=43175),K15+1,(IF(AND(J16>Synthèse!$G$58,J16<=Synthèse!$G$6),source!K15+1,0))) -> 0 | S16: 0
A17: 12/04/2018 | B17: Mélanie | C17: 363.21 | E17: espèces | J17: 2018-04-11T16:36:51 | K17: =IF(AND(Synthèse!$G$6=43175,J17=43175),K16+1,(IF(AND(J17>Synthèse!$G$58,J17<=Synthèse!$G$6),source!K16+1,0))) -> 0 | S17: 0
A18: 11/04/2018 | B18: Mélanie | D18: FALSE | F18: 39.6 | G18: Gilles | H18: Frais de déplacement | J18: 2018-04-18T13:54:01 | K18: =IF(AND(Synthèse!$G$6=43175,J18=43175),K17+1,(IF(AND(J18>Synthèse!$G$58,J18<=Synthèse!$G$6),source!K17+1,0))) -> 0 | S18: 0
A19: 19/04/2018 | B19: Mélanie | C19: 321.76 | E19: espèces | J19: 2018-04-18T13:54:46 | K19: =IF(AND(Synthèse!$G$6=43175,J19=43175),K18+1,(IF(AND(J19>Synthèse!$G$58,J19<=Synthèse!$G$6),source!K18+1,0))) -> 0 | S19: 0
A20: 23/04/2018 | B20: Mélanie | C20: 414.6 | D20: FALSE | E20: espèces | J20: 2018-04-26T14:06:40 | K20: =IF(AND(Synthèse!$G$6=43175,J20=43175),K19+1,(IF(AND(J20>Synthèse!$G$58,J20<=Synthèse!$G$6),source!K19+1,0))) -> 1 | M20: 23/04/2018 | N20: 2018-04-26T14:06:40 | O20: Entrée | P20: espèces | Q20: Mélanie | R20: 414.6 | S20: 0
A21: 27/04/2018 | B21: Mélanie | C21: 308.91 | D21: FALSE | E21: espèces | J21: 2018-04-26T14:06:40 | K21: =IF(AND(Synthèse!$G$6=43175,J21=43175),K20+1,(IF(AND(J21>Synthèse!$G$58,J21<=Synthèse!$G$6),source!K20+1,0))) -> 2 | M21: 27/04/2018 | N21: 2018-04-26T14:06:40 | O21: Entrée | P21: espèces | Q21: Mélanie | R21: 308.91 | S21: 0
K22: =IF(AND(Synthèse!$G$6=43175,J22=43175),K21+1,(IF(AND(J22>Synthèse!$G$58,J22<=Synthèse!$G$6),source!K21+1,0))) -> 0 | M22: =IF(#REF!>0,#REF!,"") ->  | N22: =IF(#REF!>0,#REF!,"") ->  | O22: =IF(AND(#REF!>0,#REF!<>""),"Entrée",(IF(AND(#REF!>0,#REF!<>""),"Dépense",""))) ->  | P22: =IF(O22="Entrée",#REF!,(IF(O22="Dépense",#REF!,""))) ->  | Q22: =IF(#REF!>0,#REF!,"") ->  | R22: =IF(O22="Entrée",#REF!,(IF(O22="Dépense",#REF!,""))) ->  | S22: =IF(AND(O22="Entrée",#REF!="Vrai"),1,0) ->  | T22: =(IF(O22="Dépense",#REF!,"")) -> 
M23: =IF(#REF!>0,#REF!,"") ->  | N23: =IF(#REF!>0,#REF!,"") ->  | O23: =IF(AND(#REF!>0,#REF!<>""),"Entrée",(IF(AND(#REF!>0,#REF!<>""),"Dépense",""))) ->  | P23: =IF(O23="Entrée",#REF!,(IF(O23="Dépense",#REF!,""))) ->  | Q23: =IF(#REF!>0,#REF!,"") ->  | R23: =IF(O23="Entrée",#REF!,(IF(O23="Dépense",#REF!,""))) ->  | S23: =IF(AND(O23="Entrée",#REF!="Vrai"),1,0) ->  | T23: =(IF(O23="Dépense",#REF!,"")) -> 
M24: =IF(#REF!>0,#REF!,"") ->  | N24: =IF(#REF!>0,#REF!,"") ->  | O24: =IF(AND(#REF!>0,#REF!<>""),"Entrée",(IF(AND(#REF!>0,#REF!<>""),"Dépense",""))) ->  | P24: =IF(O24="Entrée",#REF!,(IF(O24="Dépense",#REF!,""))) ->  | Q24: =IF(#REF!>0,#REF!,"") ->  | R24: =IF(O24="Entrée",#REF!,(IF(O24="Dépense",#REF!,""))) ->  | S24: =IF(AND(O24="Entrée",#REF!="Vrai"),1,0) ->  | T24: =(IF(O24="Dépense",#REF!,"")) -> 
M25: =IF(K22>0,A22,"") ->  | N25: =IF(K22>0,J22,"") ->  | O25: =IF(AND(K22>0,C22<>""),"Entrée",(IF(AND(K22>0,F22<>""),"Dépense",""))) ->  | P25: =IF(O25="Entrée",E22,(IF(O25="Dépense",H22,""))) ->  | Q25: =IF(K22>0,B22,"") ->  | R25: =IF(O25="Entrée",C22,(IF(O25="Dépense",F22,""))) ->  | S25: =IF(AND(O25="Entrée",D22="Vrai"),1,0) -> 0 | T25: =(IF(O25="Dépense",G22,"")) -> 
M26: =IF(K23>0,A23,"") ->  | N26: =IF(K23>0,J23,"") ->  | O26: =IF(AND(K23>0,C23<>""),"Entrée",(IF(AND(K23>0,F23<>""),"Dépense",""))) ->  | P26: =IF(O26="Entrée",E23,(IF(O26="Dépense",H23,""))) ->  | Q26: =IF(K23>0,B23,"") ->  | R26: =IF(O26="Entrée",C23,(IF(O26="Dépense",F23,""))) ->  | S26: =IF(AND(O26="Entrée",D23="Vrai"),1,0) -> 0 | T26: =(IF(O26="Dépense",G23,"")) -> 
M27: =IF(K24>0,A24,"") ->  | N27: =IF(K24>0,J24,"") ->  | O27: =IF(AND(K24>0,C24<>""),"Entrée",(IF(AND(K24>0,F24<>""),"Dépense",""))) ->  | P27: =IF(O27="Entrée",E24,(IF(O27="Dépense",H24,""))) ->  | Q27: =IF(K24>0,B24,"") ->  | R27: =IF(O27="Entrée",C24,(IF(O27="Dépense",F24,""))) ->  | S27: =IF(AND(O27="Entrée",D24="Vrai"),1,0) -> 0 | T27: =(IF(O27="Dépense",G24,"")) -> 
M28: =IF(K25>0,A25,"") ->  | N28: =IF(K25>0,J25,"") ->  | O28: =IF(AND(K25>0,C25<>""),"Entrée",(IF(AND(K25>0,F25<>""),"Dépense",""))) ->  | P28: =IF(O28="Entrée",E25,(IF(O28="Dépense",H25,""))) ->  | Q28: =IF(K25>0,B25,"") ->  | R28: =IF(O28="Entrée",C25,(IF(O28="Dépense",F25,""))) ->  | S28: =IF(AND(O28="Entrée",D25="Vrai"),1,0) -> 0 | T28: =(IF(O28="Dépense",G25,"")) -> 
M29: =IF(K26>0,A26,"") ->  | N29: =IF(K26>0,J26,"") ->  | O29: =IF(AND(K26>0,C26<>""),"Entrée",(IF(AND(K26>0,F26<>""),"Dépense",""))) ->  | P29: =IF(O29="Entrée",E26,(IF(O29="Dépense",H26,""))) ->  | Q29: =IF(K26>0,B26,"") ->  | R29: =IF(O29="Entrée",C26,(IF(O29="Dépense",F26,""))) ->  | S29: =IF(AND(O29="Entrée",D26="Vrai"),1,0) -> 0 | T29: =(IF(O29="Dépense",G26,"")) -> 
M30: =IF(K27>0,A27,"") ->  | N30: =IF(K27>0,J27,"") ->  | O30: =IF(AND(K27>0,C27<>""),"Entrée",(IF(AND(K27>0,F27<>""),"Dépense",""))) ->  | P30: =IF(O30="Entrée",E27,(IF(O30="Dépense",H27,""))) ->  | Q30: =IF(K27>0,B27,"") ->  | R30: =IF(O30="Entrée",C27,(IF(O30="Dépense",F27,""))) ->  | S30: =IF(AND(O30="Entrée",D27="Vrai"),1,0) -> 0 | T30: =(IF(O30="Dépense",G27,"")) -> 
M31: =IF(K28>0,A28,"") ->  | N31: =IF(K28>0,J28,"") ->  | O31: =IF(AND(K28>0,C28<>""),"Entrée",(IF(AND(K28>0,F28<>""),"Dépense",""))) ->  | P31: =IF(O31="Entrée",E28,(IF(O31="Dépense",H28,""))) ->  | Q31: =IF(K28>0,B28,"") ->  | R31: =IF(O31="Entrée",C28,(IF(O31="Dépense",F28,""))) ->  | S31: =IF(AND(O31="Entrée",D28="Vrai"),1,0) -> 0 | T31: =(IF(O31="Dépense",G28,"")) -> 
M32: =IF(K29>0,A29,"") ->  | N32: =IF(K29>0,J29,"") ->  | O32: =IF(AND(K29>0,C29<>""),"Entrée",(IF(AND(K29>0,F29<>""),"Dépense",""))) ->  | P32: =IF(O32="Entrée",E29,(IF(O32="Dépense",H29,""))) ->  | Q32: =IF(K29>0,B29,"") ->  | R32: =IF(O32="Entrée",C29,(IF(O32="Dépense",F29,""))) ->  | S32: =IF(AND(O32="Entrée",D29="Vrai"),1,0) -> 0 | T32: =(IF(O32="Dépense",G29,"")) -> 
M33: =IF(K30>0,A30,"") ->  | N33: =IF(K30>0,J30,"") ->  | O33: =IF(AND(K30>0,C30<>""),"Entrée",(IF(AND(K30>0,F30<>""),"Dépense",""))) ->  | P33: =IF(O33="Entrée",E30,(IF(O33="Dépense",H30,""))) ->  | Q33: =IF(K30>0,B30,"") ->  | R33: =IF(O33="Entrée",C30,(IF(O33="Dépense",F30,""))) ->  | S33: =IF(AND(O33="Entrée",D30="Vrai"),1,0) -> 0 | T33: =(IF(O33="Dépense",G30,"")) -> 
M34: =IF(K31>0,A31,"") ->  | N34: =IF(K31>0,J31,"") ->  | O34: =IF(AND(K31>0,C31<>""),"Entrée",(IF(AND(K31>0,F31<>""),"Dépense",""))) ->  | P34: =IF(O34="Entrée",E31,(IF(O34="Dépense",H31,""))) ->  | Q34: =IF(K31>0,B31,"") ->  | R34: =IF(O34="Entrée",C31,(IF(O34="Dépense",F31,""))) ->  | S34: =IF(AND(O34="Entrée",D31="Vrai"),1,0) -> 0 | T34: =(IF(O34="Dépense",G31,"")) -> 
M35: =IF(K32>0,A32,"") ->  | N35: =IF(K32>0,J32,"") ->  | O35: =IF(AND(K32>0,C32<>""),"Entrée",(IF(AND(K32>0,F32<>""),"Dépense",""))) ->  | P35: =IF(O35="Entrée",E32,(IF(O35="Dépense",H32,""))) ->  | Q35: =IF(K32>0,B32,"") ->  | R35: =IF(O35="Entrée",C32,(IF(O35="Dépense",F32,""))) ->  | S35: =IF(AND(O35="Entrée",D32="Vrai"),1,0) -> 0 | T35: =(IF(O35="Dépense",G32,"")) -> 
M36: =IF(K33>0,A33,"") ->  | N36: =IF(K33>0,J33,"") ->  | O36: =IF(AND(K33>0,C33<>""),"Entrée",(IF(AND(K33>0,F33<>""),"Dépense",""))) ->  | P36: =IF(O36="Entrée",E33,(IF(O36="Dépense",H33,""))) ->  | Q36: =IF(K33>0,B33,"") ->  | R36: =IF(O36="Entrée",C33,(IF(O36="Dépense",F33,""))) ->  | S36: =IF(AND(O36="Entrée",D33="Vrai"),1,0) -> 0 | T36: =(IF(O36="Dépense",G33,"")) -> 
M37: =IF(K34>0,A34,"") ->  | N37: =IF(K34>0,J34,"") ->  | O37: =IF(AND(K34>0,C34<>""),"Entrée",(IF(AND(K34>0,F34<>""),"Dépense",""))) ->  | P37: =IF(O37="Entrée",E34,(IF(O37="Dépense",H34,""))) ->  | Q37: =IF(K34>0,B34,"") ->  | R37: =IF(O37="Entrée",C34,(IF(O37="Dépense",F34,""))) ->  | S37: =IF(AND(O37="Entrée",D34="Vrai"),1,0) -> 0 | T37: =(IF(O37="Dépense",G34,"")) -> 
M38: =IF(K35>0,A35,"") ->  | N38: =IF(K35>0,J35,"") ->  | O38: =IF(AND(K35>0,C35<>""),"Entrée",(IF(AND(K35>0,F35<>""),"Dépense",""))) ->  | P38: =IF(O38="Entrée",E35,(IF(O38="Dépense",H35,""))) ->  | Q38: =IF(K35>0,B35,"") ->  | R38: =IF(O38="Entrée",C35,(IF(O38="Dépense",F35,""))) ->  | S38: =IF(AND(O38="Entrée",D35="Vrai"),1,0) -> 0 | T38: =(IF(O38="Dépense",G35,"")) -> 
M39: =IF(K36>0,A36,"") ->  | N39: =IF(K36>0,J36,"") ->  | O39: =IF(AND(K36>0,C36<>""),"Entrée",(IF(AND(K36>0,F36<>""),"Dépense",""))) ->  | P39: =IF(O39="Entrée",E36,(IF(O39="Dépense",H36,""))) ->  | Q39: =IF(K36>0,B36,"") ->  | R39: =IF(O39="Entrée",C36,(IF(O39="Dépense",F36,""))) ->  | S39: =IF(AND(O39="Entrée",D36="Vrai"),1,0) -> 0 | T39: =(IF(O39="Dépense",G36,"")) -> 
M40: =IF(K37>0,A37,"") ->  | N40: =IF(K37>0,J37,"") ->  | O40: =IF(AND(K37>0,C37<>""),"Entrée",(IF(AND(K37>0,F37<>""),"Dépense",""))) ->  | P40: =IF(O40="Entrée",E37,(IF(O40="Dépense",H37,""))) ->  | Q40: =IF(K37>0,B37,"") ->  | R40: =IF(O40="Entrée",C37,(IF(O40="Dépense",F37,""))) ->  | S40: =IF(AND(O40="Entrée",D37="Vrai"),1,0) -> 0 | T40: =(IF(O40="Dépense",G37,"")) -> 
M41: =IF(K38>0,A38,"") ->  | N41: =IF(K38>0,J38,"") ->  | O41: =IF(AND(K38>0,C38<>""),"Entrée",(IF(AND(K38>0,F38<>""),"Dépense",""))) ->  | P41: =IF(O41="Entrée",E38,(IF(O41="Dépense",H38,""))) ->  | Q41: =IF(K38>0,B38,"") ->  | R41: =IF(O41="Entrée",C38,(IF(O41="Dépense",F38,""))) ->  | S41: =IF(AND(O41="Entrée",D38="Vrai"),1,0) -> 0 | T41: =(IF(O41="Dépense",G38,"")) -> 
M42: =IF(K39>0,A39,"") ->  | N42: =IF(K39>0,J39,"") ->  | O42: =IF(AND(K39>0,C39<>""),"Entrée",(IF(AND(K39>0,F39<>""),"Dépense",""))) ->  | P42: =IF(O42="Entrée",E39,(IF(O42="Dépense",H39,""))) ->  | Q42: =IF(K39>0,B39,"") ->  | R42: =IF(O42="Entrée",C39,(IF(O42="Dépense",F39,""))) ->  | S42: =IF(AND(O42="Entrée",D39="Vrai"),1,0) -> 0 | T42: =(IF(O42="Dépense",G39,"")) -> 
M43: =IF(K40>0,A40,"") ->  | N43: =IF(K40>0,J40,"") ->  | O43: =IF(AND(K40>0,C40<>""),"Entrée",(IF(AND(K40>0,F40<>""),"Dépense",""))) ->  | P43: =IF(O43="Entrée",E40,(IF(O43="Dépense",H40,""))) ->  | Q43: =IF(K40>0,B40,"") ->  | R43: =IF(O43="Entrée",C40,(IF(O43="Dépense",F40,""))) ->  | S43: =IF(AND(O43="Entrée",D40="Vrai"),1,0) -> 0 | T43: =(IF(O43="Dépense",G40,"")) -> 
M44: =IF(K41>0,A41,"") ->  | N44: =IF(K41>0,J41,"") ->  | O44: =IF(AND(K41>0,C41<>""),"Entrée",(IF(AND(K41>0,F41<>""),"Dépense",""))) ->  | P44: =IF(O44="Entrée",E41,(IF(O44="Dépense",H41,""))) ->  | Q44: =IF(K41>0,B41,"") ->  | R44: =IF(O44="Entrée",C41,(IF(O44="Dépense",F41,""))) ->  | S44: =IF(AND(O44="Entrée",D41="Vrai"),1,0) -> 0 | T44: =(IF(O44="Dépense",G41,"")) -> 
M45: =IF(K42>0,A42,"") ->  | N45: =IF(K42>0,J42,"") ->  | O45: =IF(AND(K42>0,C42<>""),"Entrée",(IF(AND(K42>0,F42<>""),"Dépense",""))) ->  | P45: =IF(O45="Entrée",E42,(IF(O45="Dépense",H42,""))) ->  | Q45: =IF(K42>0,B42,"") ->  | R45: =IF(O45="Entrée",C42,(IF(O45="Dépense",F42,""))) ->  | S45: =IF(AND(O45="Entrée",D42="Vrai"),1,0) -> 0 | T45: =(IF(O45="Dépense",G42,"")) -> 
M46: =IF(K43>0,A43,"") ->  | N46: =IF(K43>0,J43,"") ->  | O46: =IF(AND(K43>0,C43<>""),"Entrée",(IF(AND(K43>0,F43<>""),"Dépense",""))) ->  | P46: =IF(O46="Entrée",E43,(IF(O46="Dépense",H43,""))) ->  | Q46: =IF(K43>0,B43,"") ->  | R46: =IF(O46="Entrée",C43,(IF(O46="Dépense",F43,""))) ->  | S46: =IF(AND(O46="Entrée",D43="Vrai"),1,0) -> 0 | T46: =(IF(O46="Dépense",G43,"")) -> 
M47: =IF(K44>0,A44,"") ->  | N47: =IF(K44>0,J44,"") ->  | O47: =IF(AND(K44>0,C44<>""),"Entrée",(IF(AND(K44>0,F44<>""),"Dépense",""))) ->  | P47: =IF(O47="Entrée",E44,(IF(O47="Dépense",H44,""))) ->  | Q47: =IF(K44>0,B44,"") ->  | R47: =IF(O47="Entrée",C44,(IF(O47="Dépense",F44,""))) ->  | S47: =IF(AND(O47="Entrée",D44="Vrai"),1,0) -> 0 | T47: =(IF(O47="Dépense",G44,"")) -> 
M48: =IF(K45>0,A45,"") ->  | N48: =IF(K45>0,J45,"") ->  | O48: =IF(AND(K45>0,C45<>""),"Entrée",(IF(AND(K45>0,F45<>""),"Dépense",""))) ->  | P48: =IF(O48="Entrée",E45,(IF(O48="Dépense",H45,""))) ->  | Q48: =IF(K45>0,B45,"") ->  | R48: =IF(O48="Entrée",C45,(IF(O48="Dépense",F45,""))) ->  | S48: =IF(AND(O48="Entrée",D45="Vrai"),1,0) -> 0 | T48: =(IF(O48="Dépense",G45,"")) -> 
M49: =IF(K46>0,A46,"") ->  | N49: =IF(K46>0,J46,"") ->  | O49: =IF(AND(K46>0,C46<>""),"Entrée",(IF(AND(K46>0,F46<>""),"Dépense",""))) ->  | P49: =IF(O49="Entrée",E46,(IF(O49="Dépense",H46,""))) ->  | Q49: =IF(K46>0,B46,"") ->  | R49: =IF(O49="Entrée",C46,(IF(O49="Dépense",F46,""))) ->  | S49: =IF(AND(O49="Entrée",D46="Vrai"),1,0) -> 0 | T49: =(IF(O49="Dépense",G46,"")) -> 
M50: =IF(K47>0,A47,"") ->  | N50: =IF(K47>0,J47,"") ->  | O50: =IF(AND(K47>0,C47<>""),"Entrée",(IF(AND(K47>0,F47<>""),"Dépense",""))) ->  | P50: =IF(O50="Entrée",E47,(IF(O50="Dépense",H47,""))) ->  | Q50: =IF(K47>0,B47,"") ->  | R50: =IF(O50="Entrée",C47,(IF(O50="Dépense",F47,""))) ->  | S50: =IF(AND(O50="Entrée",D47="Vrai"),1,0) -> 0 | T50: =(IF(O50="Dépense",G47,"")) -> 
M51: =IF(K48>0,A48,"") ->  | N51: =IF(K48>0,J48,"") ->  | O51: =IF(AND(K48>0,C48<>""),"Entrée",(IF(AND(K48>0,F48<>""),"Dépense",""))) ->  | P51: =IF(O51="Entrée",E48,(IF(O51="Dépense",H48,""))) ->  | Q51: =IF(K48>0,B48,"") ->  | R51: =IF(O51="Entrée",C48,(IF(O51="Dépense",F48,""))) ->  | S51: =IF(AND(O51="Entrée",D48="Vrai"),1,0) -> 0 | T51: =(IF(O51="Dépense",G48,"")) -> 
M52: =IF(K49>0,A49,"") ->  | N52: =IF(K49>0,J49,"") ->  | O52: =IF(AND(K49>0,C49<>""),"Entrée",(IF(AND(K49>0,F49<>""),"Dépense",""))) ->  | P52: =IF(O52="Entrée",E49,(IF(O52="Dépense",H49,""))) ->  | Q52: =IF(K49>0,B49,"") ->  | R52: =IF(O52="Entrée",C49,(IF(O52="Dépense",F49,""))) ->  | S52: =IF(AND(O52="Entrée",D49="Vrai"),1,0) -> 0 | T52: =(IF(O52="Dépense",G49,"")) -> 
M53: =IF(K50>0,A50,"") ->  | N53: =IF(K50>0,J50,"") ->  | O53: =IF(AND(K50>0,C50<>""),"Entrée",(IF(AND(K50>0,F50<>""),"Dépense",""))) ->  | P53: =IF(O53="Entrée",E50,(IF(O53="Dépense",H50,""))) ->  | Q53: =IF(K50>0,B50,"") ->  | R53: =IF(O53="Entrée",C50,(IF(O53="Dépense",F50,""))) ->  | S53: =IF(AND(O53="Entrée",D50="Vrai"),1,0) -> 0 | T53: =(IF(O53="Dépense",G50,"")) -> 
M54: =IF(K51>0,A51,"") ->  | N54: =IF(K51>0,J51,"") ->  | O54: =IF(AND(K51>0,C51<>""),"Entrée",(IF(AND(K51>0,F51<>""),"Dépense",""))) ->  | P54: =IF(O54="Entrée",E51,(IF(O54="Dépense",H51,""))) ->  | Q54: =IF(K51>0,B51,"") ->  | R54: =IF(O54="Entrée",C51,(IF(O54="Dépense",F51,""))) ->  | S54: =IF(AND(O54="Entrée",D51="Vrai"),1,0) -> 0 | T54: =(IF(O54="Dépense",G51,"")) -> 
M55: =IF(K52>0,A52,"") ->  | N55: =IF(K52>0,J52,"") ->  | O55: =IF(AND(K52>0,C52<>""),"Entrée",(IF(AND(K52>0,F52<>""),"Dépense",""))) ->  | P55: =IF(O55="Entrée",E52,(IF(O55="Dépense",H52,""))) ->  | Q55: =IF(K52>0,B52,"") ->  | R55: =IF(O55="Entrée",C52,(IF(O55="Dépense",F52,""))) ->  | S55: =IF(AND(O55="Entrée",D52="Vrai"),1,0) -> 0 | T55: =(IF(O55="Dépense",G52,"")) -> 
M56: =IF(K53>0,A53,"") ->  | N56: =IF(K53>0,J53,"") ->  | O56: =IF(AND(K53>0,C53<>""),"Entrée",(IF(AND(K53>0,F53<>""),"Dépense",""))) ->  | P56: =IF(O56="Entrée",E53,(IF(O56="Dépense",H53,""))) ->  | Q56: =IF(K53>0,B53,"") ->  | R56: =IF(O56="Entrée",C53,(IF(O56="Dépense",F53,""))) ->  | S56: =IF(AND(O56="Entrée",D53="Vrai"),1,0) -> 0 | T56: =(IF(O56="Dépense",G53,"")) -> 
M57: =IF(K54>0,A54,"") ->  | N57: =IF(K54>0,J54,"") ->  | O57: =IF(AND(K54>0,C54<>""),"Entrée",(IF(AND(K54>0,F54<>""),"Dépense",""))) ->  | P57: =IF(O57="Entrée",E54,(IF(O57="Dépense",H54,""))) ->  | Q57: =IF(K54>0,B54,"") ->  | R57: =IF(O57="Entrée",C54,(IF(O57="Dépense",F54,""))) ->  | S57: =IF(AND(O57="Entrée",D54="Vrai"),1,0) -> 0 | T57: =(IF(O57="Dépense",G54,"")) -> 
M58: =IF(K55>0,A55,"") ->  | N58: =IF(K55>0,J55,"") ->  | O58: =IF(AND(K55>0,C55<>""),"Entrée",(IF(AND(K55>0,F55<>""),"Dépense",""))) ->  | P58: =IF(O58="Entrée",E55,(IF(O58="Dépense",H55,""))) ->  | Q58: =IF(K55>0,B55,"") ->  | R58: =IF(O58="Entrée",C55,(IF(O58="Dépense",F55,""))) ->  | S58: =IF(AND(O58="Entrée",D55="Vrai"),1,0) -> 0 | T58: =(IF(O58="Dépense",G55,"")) -> 
M59: =IF(K56>0,A56,"") ->  | N59: =IF(K56>0,J56,"") ->  | O59: =IF(AND(K56>0,C56<>""),"Entrée",(IF(AND(K56>0,F56<>""),"Dépense",""))) ->  | P59: =IF(O59="Entrée",E56,(IF(O59="Dépense",H56,""))) ->  | Q59: =IF(K56>0,B56,"") ->  | R59: =IF(O59="Entrée",C56,(IF(O59="Dépense",F56,""))) ->  | S59: =IF(AND(O59="Entrée",D56="Vrai"),1,0) -> 0 | T59: =(IF(O59="Dépense",G56,"")) -> 
M60: =IF(K57>0,A57,"") ->  | N60: =IF(K57>0,J57,"") ->  | O60: =IF(AND(K57>0,C57<>""),"Entrée",(IF(AND(K57>0,F57<>""),"Dépense",""))) ->  | P60: =IF(O60="Entrée",E57,(IF(O60="Dépense",H57,""))) ->  | Q60: =IF(K57>0,B57,"") ->  | R60: =IF(O60="Entrée",C57,(IF(O60="Dépense",F57,""))) ->  | S60: =IF(AND(O60="Entrée",D57="Vrai"),1,0) -> 0 | T60: =(IF(O60="Dépense",G57,"")) -> 
M61: =IF(K58>0,A58,"") ->  | N61: =IF(K58>0,J58,"") ->  | O61: =IF(AND(K58>0,C58<>""),"Entrée",(IF(AND(K58>0,F58<>""),"Dépense",""))) ->  | P61: =IF(O61="Entrée",E58,(IF(O61="Dépense",H58,""))) ->  | Q61: =IF(K58>0,B58,"") ->  | R61: =IF(O61="Entrée",C58,(IF(O61="Dépense",F58,""))) ->  | S61: =IF(AND(O61="Entrée",D58="Vrai"),1,0) -> 0 | T61: =(IF(O61="Dépense",G58,"")) -> 
M62: =IF(K59>0,A59,"") ->  | N62: =IF(K59>0,J59,"") ->  | O62: =IF(AND(K59>0,C59<>""),"Entrée",(IF(AND(K59>0,F59<>""),"Dépense",""))) ->  | P62: =IF(O62="Entrée",E59,(IF(O62="Dépense",H59,""))) ->  | Q62: =IF(K59>0,B59,"") ->  | R62: =IF(O62="Entrée",C59,(IF(O62="Dépense",F59,""))) ->  | S62: =IF(AND(O62="Entrée",D59="Vrai"),1,0) -> 0 | T62: =(IF(O62="Dépense",G59,"")) -> 
M63: =IF(K60>0,A60,"") ->  | N63: =IF(K60>0,J60,"") ->  | O63: =IF(AND(K60>0,C60<>""),"Entrée",(IF(AND(K60>0,F60<>""),"Dépense",""))) ->  | P63: =IF(O63="Entrée",E60,(IF(O63="Dépense",H60,""))) ->  | Q63: =IF(K60>0,B60,"") ->  | R63: =IF(O63="Entrée",C60,(IF(O63="Dépense",F60,""))) ->  | S63: =IF(AND(O63="Entrée",D60="Vrai"),1,0) -> 0 | T63: =(IF(O63="Dépense",G60,"")) -> 
M64: =IF(K61>0,A61,"") ->  | N64: =IF(K61>0,J61,"") ->  | O64: =IF(AND(K61>0,C61<>""),"Entrée",(IF(AND(K61>0,F61<>""),"Dépense",""))) ->  | P64: =IF(O64="Entrée",E61,(IF(O64="Dépense",H61,""))) ->  | Q64: =IF(K61>0,B61,"") ->  | R64: =IF(O64="Entrée",C61,(IF(O64="Dépense",F61,""))) ->  | S64: =IF(AND(O64="Entrée",D61="Vrai"),1,0) -> 0 | T64: =(IF(O64="Dépense",G61,"")) -> 
M65: =IF(K62>0,A62,"") ->  | N65: =IF(K62>0,J62,"") ->  | O65: =IF(AND(K62>0,C62<>""),"Entrée",(IF(AND(K62>0,F62<>""),"Dépense",""))) ->  | P65: =IF(O65="Entrée",E62,(IF(O65="Dépense",H62,""))) ->  | Q65: =IF(K62>0,B62,"") ->  | R65: =IF(O65="Entrée",C62,(IF(O65="Dépense",F62,""))) ->  | S65: =IF(AND(O65="Entrée",D62="Vrai"),1,0) -> 0 | T65: =(IF(O65="Dépense",G62,"")) -> 
M66: =IF(K63>0,A63,"") ->  | N66: =IF(K63>0,J63,"") ->  | O66: =IF(AND(K63>0,C63<>""),"Entrée",(IF(AND(K63>0,F63<>""),"Dépense",""))) ->  | P66: =IF(O66="Entrée",E63,(IF(O66="Dépense",H63,""))) ->  | Q66: =IF(K63>0,B63,"") ->  | R66: =IF(O66="Entrée",C63,(IF(O66="Dépense",F63,""))) ->  | S66: =IF(AND(O66="Entrée",D63="Vrai"),1,0) -> 0 | T66: =(IF(O66="Dépense",G63,"")) -> 
M67: =IF(K64>0,A64,"") ->  | N67: =IF(K64>0,J64,"") ->  | O67: =IF(AND(K64>0,C64<>""),"Entrée",(IF(AND(K64>0,F64<>""),"Dépense",""))) ->  | P67: =IF(O67="Entrée",E64,(IF(O67="Dépense",H64,""))) ->  | Q67: =IF(K64>0,B64,"") ->  | R67: =IF(O67="Entrée",C64,(IF(O67="Dépense",F64,""))) ->  | S67: =IF(AND(O67="Entrée",D64="Vrai"),1,0) -> 0 | T67: =(IF(O67="Dépense",G64,"")) -> 
M68: =IF(K65>0,A65,"") ->  | N68: =IF(K65>0,J65,"") ->  | O68: =IF(AND(K65>0,C65<>""),"Entrée",(IF(AND(K65>0,F65<>""),"Dépense",""))) ->  | P68: =IF(O68="Entrée",E65,(IF(O68="Dépense",H65,""))) ->  | Q68: =IF(K65>0,B65,"") ->  | R68: =IF(O68="Entrée",C65,(IF(O68="Dépense",F65,""))) ->  | S68: =IF(AND(O68="Entrée",D65="Vrai"),1,0) -> 0 | T68: =(IF(O68="Dépense",G65,"")) -> 
M69: =IF(K66>0,A66,"") ->  | N69: =IF(K66>0,J66,"") ->  | O69: =IF(AND(K66>0,C66<>""),"Entrée",(IF(AND(K66>0,F66<>""),"Dépense",""))) ->  | P69: =IF(O69="Entrée",E66,(IF(O69="Dépense",H66,""))) ->  | Q69: =IF(K66>0,B66,"") ->  | R69: =IF(O69="Entrée",C66,(IF(O69="Dépense",F66,""))) ->  | S69: =IF(AND(O69="Entrée",D66="Vrai"),1,0) -> 0 | T69: =(IF(O69="Dépense",G66,"")) -> 
M70: =IF(K67>0,A67,"") ->  | N70: =IF(K67>0,J67,"") ->  | O70: =IF(AND(K67>0,C67<>""),"Entrée",(IF(AND(K67>0,F67<>""),"Dépense",""))) ->  | P70: =IF(O70="Entrée",E67,(IF(O70="Dépense",H67,""))) ->  | Q70: =IF(K67>0,B67,"") ->  | R70: =IF(O70="Entrée",C67,(IF(O70="Dépense",F67,""))) ->  | S70: =IF(AND(O70="Entrée",D67="Vrai"),1,0) -> 0 | T70: =(IF(O70="Dépense",G67,"")) -> 
M71: =IF(K68>0,A68,"") ->  | N71: =IF(K68>0,J68,"") ->  | O71: =IF(AND(K68>0,C68<>""),"Entrée",(IF(AND(K68>0,F68<>""),"Dépense",""))) ->  | P71: =IF(O71="Entrée",E68,(IF(O71="Dépense",H68,""))) ->  | Q71: =IF(K68>0,B68,"") ->  | R71: =IF(O71="Entrée",C68,(IF(O71="Dépense",F68,""))) ->  | S71: =IF(AND(O71="Entrée",D68="Vrai"),1,0) -> 0 | T71: =(IF(O71="Dépense",G68,"")) -> 
M72: =IF(K69>0,A69,"") ->  | N72: =IF(K69>0,J69,"") ->  | O72: =IF(AND(K69>0,C69<>""),"Entrée",(IF(AND(K69>0,F69<>""),"Dépense",""))) ->  | P72: =IF(O72="Entrée",E69,(IF(O72="Dépense",H69,""))) ->  | Q72: =IF(K69>0,B69,"") ->  | R72: =IF(O72="Entrée",C69,(IF(O72="Dépense",F69,""))) ->  | S72: =IF(AND(O72="Entrée",D69="Vrai"),1,0) -> 0 | T72: =(IF(O72="Dépense",G69,"")) -> 
M73: =IF(K70>0,A70,"") ->  | N73: =IF(K70>0,J70,"") ->  | O73: =IF(AND(K70>0,C70<>""),"Entrée",(IF(AND(K70>0,F70<>""),"Dépense",""))) ->  | P73: =IF(O73="Entrée",E70,(IF(O73="Dépense",H70,""))) ->  | Q73: =IF(K70>0,B70,"") ->  | R73: =IF(O73="Entrée",C70,(IF(O73="Dépense",F70,""))) ->  | S73: =IF(AND(O73="Entrée",D70="Vrai"),1,0) -> 0 | T73: =(IF(O73="Dépense",G70,"")) -> 
M74: =IF(K71>0,A71,"") ->  | N74: =IF(K71>0,J71,"") ->  | O74: =IF(AND(K71>0,C71<>""),"Entrée",(IF(AND(K71>0,F71<>""),"Dépense",""))) ->  | P74: =IF(O74="Entrée",E71,(IF(O74="Dépense",H71,""))) ->  | Q74: =IF(K71>0,B71,"") ->  | R74: =IF(O74="Entrée",C71,(IF(O74="Dépense",F71,""))) ->  | S74: =IF(AND(O74="Entrée",D71="Vrai"),1,0) -> 0 | T74: =(IF(O74="Dépense",G71,"")) -> 
M75: =IF(K72>0,A72,"") ->  | N75: =IF(K72>0,J72,"") ->  | O75: =IF(AND(K72>0,C72<>""),"Entrée",(IF(AND(K72>0,F72<>""),"Dépense",""))) ->  | P75: =IF(O75="Entrée",E72,(IF(O75="Dépense",H72,""))) ->  | Q75: =IF(K72>0,B72,"") ->  | R75: =IF(O75="Entrée",C72,(IF(O75="Dépense",F72,""))) ->  | S75: =IF(AND(O75="Entrée",D72="Vrai"),1,0) -> 0 | T75: =(IF(O75="Dépense",G72,"")) -> 
M76: =IF(K73>0,A73,"") ->  | N76: =IF(K73>0,J73,"") ->  | O76: =IF(AND(K73>0,C73<>""),"Entrée",(IF(AND(K73>0,F73<>""),"Dépense",""))) ->  | P76: =IF(O76="Entrée",E73,(IF(O76="Dépense",H73,""))) ->  | Q76: =IF(K73>0,B73,"") ->  | R76: =IF(O76="Entrée",C73,(IF(O76="Dépense",F73,""))) ->  | S76: =IF(AND(O76="Entrée",D73="Vrai"),1,0) -> 0 | T76: =(IF(O76="Dépense",G73,"")) -> 
M77: =IF(K74>0,A74,"") ->  | N77: =IF(K74>0,J74,"") ->  | O77: =IF(AND(K74>0,C74<>""),"Entrée",(IF(AND(K74>0,F74<>""),"Dépense",""))) ->  | P77: =IF(O77="Entrée",E74,(IF(O77="Dépense",H74,""))) ->  | Q77: =IF(K74>0,B74,"") ->  | R77: =IF(O77="Entrée",C74,(IF(O77="Dépense",F74,""))) ->  | S77: =IF(AND(O77="Entrée",D74="Vrai"),1,0) -> 0 | T77: =(IF(O77="Dépense",G74,"")) -> 
M78: =IF(K75>0,A75,"") ->  | N78: =IF(K75>0,J75,"") ->  | O78: =IF(AND(K75>0,C75<>""),"Entrée",(IF(AND(K75>0,F75<>""),"Dépense",""))) ->  | P78: =IF(O78="Entrée",E75,(IF(O78="Dépense",H75,""))) ->  | Q78: =IF(K75>0,B75,"") ->  | R78: =IF(O78="Entrée",C75,(IF(O78="Dépense",F75,""))) ->  | S78: =IF(AND(O78="Entrée",D75="Vrai"),1,0) -> 0 | T78: =(IF(O78="Dépense",G75,"")) -> 
M79: =IF(K76>0,A76,"") ->  | N79: =IF(K76>0,J76,"") ->  | O79: =IF(AND(K76>0,C76<>""),"Entrée",(IF(AND(K76>0,F76<>""),"Dépense",""))) ->  | P79: =IF(O79="Entrée",E76,(IF(O79="Dépense",H76,""))) ->  | Q79: =IF(K76>0,B76,"") ->  | R79: =IF(O79="Entrée",C76,(IF(O79="Dépense",F76,""))) ->  | S79: =IF(AND(O79="Entrée",D76="Vrai"),1,0) -> 0 | T79: =(IF(O79="Dépense",G76,"")) -> 
M80: =IF(K77>0,A77,"") ->  | N80: =IF(K77>0,J77,"") ->  | O80: =IF(AND(K77>0,C77<>""),"Entrée",(IF(AND(K77>0,F77<>""),"Dépense",""))) ->  | P80: =IF(O80="Entrée",E77,(IF(O80="Dépense",H77,""))) ->  | Q80: =IF(K77>0,B77,"") ->  | R80: =IF(O80="Entrée",C77,(IF(O80="Dépense",F77,""))) ->  | S80: =IF(AND(O80="Entrée",D77="Vrai"),1,0) -> 0 | T80: =(IF(O80="Dépense",G77,"")) -> 
M81: =IF(K78>0,A78,"") ->  | N81: =IF(K78>0,J78,"") ->  | O81: =IF(AND(K78>0,C78<>""),"Entrée",(IF(AND(K78>0,F78<>""),"Dépense",""))) ->  | P81: =IF(O81="Entrée",E78,(IF(O81="Dépense",H78,""))) ->  | Q81: =IF(K78>0,B78,"") ->  | R81: =IF(O81="Entrée",C78,(IF(O81="Dépense",F78,""))) ->  | S81: =IF(AND(O81="Entrée",D78="Vrai"),1,0) -> 0 | T81: =(IF(O81="Dépense",G78,"")) -> 
M82: =IF(K79>0,A79,"") ->  | N82: =IF(K79>0,J79,"") ->  | O82: =IF(AND(K79>0,C79<>""),"Entrée",(IF(AND(K79>0,F79<>""),"Dépense",""))) ->  | P82: =IF(O82="Entrée",E79,(IF(O82="Dépense",H79,""))) ->  | Q82: =IF(K79>0,B79,"") ->  | R82: =IF(O82="Entrée",C79,(IF(O82="Dépense",F79,""))) ->  | S82: =IF(AND(O82="Entrée",D79="Vrai"),1,0) -> 0 | T82: =(IF(O82="Dépense",G79,"")) -> 
M83: =IF(K80>0,A80,"") ->  | N83: =IF(K80>0,J80,"") ->  | O83: =IF(AND(K80>0,C80<>""),"Entrée",(IF(AND(K80>0,F80<>""),"Dépense",""))) ->  | P83: =IF(O83="Entrée",E80,(IF(O83="Dépense",H80,""))) ->  | Q83: =IF(K80>0,B80,"") ->  | R83: =IF(O83="Entrée",C80,(IF(O83="Dépense",F80,""))) ->  | S83: =IF(AND(O83="Entrée",D80="Vrai"),1,0) -> 0 | T83: =(IF(O83="Dépense",G80,"")) -> 
M84: =IF(K81>0,A81,"") ->  | N84: =IF(K81>0,J81,"") ->  | O84: =IF(AND(K81>0,C81<>""),"Entrée",(IF(AND(K81>0,F81<>""),"Dépense",""))) ->  | P84: =IF(O84="Entrée",E81,(IF(O84="Dépense",H81,""))) ->  | Q84: =IF(K81>0,B81,"") ->  | R84: =IF(O84="Entrée",C81,(IF(O84="Dépense",F81,""))) ->  | S84: =IF(AND(O84="Entrée",D81="Vrai"),1,0) -> 0 | T84: =(IF(O84="Dépense",G81,"")) -> 
M85: =IF(K82>0,A82,"") ->  | N85: =IF(K82>0,J82,"") ->  | O85: =IF(AND(K82>0,C82<>""),"Entrée",(IF(AND(K82>0,F82<>""),"Dépense",""))) ->  | P85: =IF(O85="Entrée",E82,(IF(O85="Dépense",H82,""))) ->  | Q85: =IF(K82>0,B82,"") ->  | R85: =IF(O85="Entrée",C82,(IF(O85="Dépense",F82,""))) ->  | S85: =IF(AND(O85="Entrée",D82="Vrai"),1,0) -> 0 | T85: =(IF(O85="Dépense",G82,"")) -> 
M86: =IF(K83>0,A83,"") ->  | N86: =IF(K83>0,J83,"") ->  | O86: =IF(AND(K83>0,C83<>""),"Entrée",(IF(AND(K83>0,F83<>""),"Dépense",""))) ->  | P86: =IF(O86="Entrée",E83,(IF(O86="Dépense",H83,""))) ->  | Q86: =IF(K83>0,B83,"") ->  | R86: =IF(O86="Entrée",C83,(IF(O86="Dépense",F83,""))) ->  | S86: =IF(AND(O86="Entrée",D83="Vrai"),1,0) -> 0 | T86: =(IF(O86="Dépense",G83,"")) -> 
M87: =IF(K84>0,A84,"") ->  | N87: =IF(K84>0,J84,"") ->  | O87: =IF(AND(K84>0,C84<>""),"Entrée",(IF(AND(K84>0,F84<>""),"Dépense",""))) ->  | P87: =IF(O87="Entrée",E84,(IF(O87="Dépense",H84,""))) ->  | Q87: =IF(K84>0,B84,"") ->  | R87: =IF(O87="Entrée",C84,(IF(O87="Dépense",F84,""))) ->  | S87: =IF(AND(O87="Entrée",D84="Vrai"),1,0) -> 0 | T87: =(IF(O87="Dépense",G84,"")) -> 
M88: =IF(K85>0,A85,"") ->  | N88: =IF(K85>0,J85,"") ->  | O88: =IF(AND(K85>0,C85<>""),"Entrée",(IF(AND(K85>0,F85<>""),"Dépense",""))) ->  | P88: =IF(O88="Entrée",E85,(IF(O88="Dépense",H85,""))) ->  | Q88: =IF(K85>0,B85,"") ->  | R88: =IF(O88="Entrée",C85,(IF(O88="Dépense",F85,""))) ->  | S88: =IF(AND(O88="Entrée",D85="Vrai"),1,0) -> 0 | T88: =(IF(O88="Dépense",G85,"")) -> 
M89: =IF(K86>0,A86,"") ->  | N89: =IF(K86>0,J86,"") ->  | O89: =IF(AND(K86>0,C86<>""),"Entrée",(IF(AND(K86>0,F86<>""),"Dépense",""))) ->  | P89: =IF(O89="Entrée",E86,(IF(O89="Dépense",H86,""))) ->  | Q89: =IF(K86>0,B86,"") ->  | R89: =IF(O89="Entrée",C86,(IF(O89="Dépense",F86,""))) ->  | S89: =IF(AND(O89="Entrée",D86="Vrai"),1,0) -> 0 | T89: =(IF(O89="Dépense",G86,"")) -> 
M90: =IF(K87>0,A87,"") ->  | N90: =IF(K87>0,J87,"") ->  | O90: =IF(AND(K87>0,C87<>""),"Entrée",(IF(AND(K87>0,F87<>""),"Dépense",""))) ->  | P90: =IF(O90="Entrée",E87,(IF(O90="Dépense",H87,""))) ->  | Q90: =IF(K87>0,B87,"") ->  | R90: =IF(O90="Entrée",C87,(IF(O90="Dépense",F87,""))) ->  | S90: =IF(AND(O90="Entrée",D87="Vrai"),1,0) -> 0 | T90: =(IF(O90="Dépense",G87,"")) -> 
M91: =IF(K88>0,A88,"") ->  | N91: =IF(K88>0,J88,"") ->  | O91: =IF(AND(K88>0,C88<>""),"Entrée",(IF(AND(K88>0,F88<>""),"Dépense",""))) ->  | P91: =IF(O91="Entrée",E88,(IF(O91="Dépense",H88,""))) ->  | Q91: =IF(K88>0,B88,"") ->  | R91: =IF(O91="Entrée",C88,(IF(O91="Dépense",F88,""))) ->  | S91: =IF(AND(O91="Entrée",D88="Vrai"),1,0) -> 0 | T91: =(IF(O91="Dépense",G88,"")) -> 
M92: =IF(K89>0,A89,"") ->  | N92: =IF(K89>0,J89,"") ->  | O92: =IF(AND(K89>0,C89<>""),"Entrée",(IF(AND(K89>0,F89<>""),"Dépense",""))) ->  | P92: =IF(O92="Entrée",E89,(IF(O92="Dépense",H89,""))) ->  | Q92: =IF(K89>0,B89,"") ->  | R92: =IF(O92="Entrée",C89,(IF(O92="Dépense",F89,""))) ->  | S92: =IF(AND(O92="Entrée",D89="Vrai"),1,0) -> 0 | T92: =(IF(O92="Dépense",G89,"")) -> 
M93: =IF(K90>0,A90,"") ->  | N93: =IF(K90>0,J90,"") ->  | O93: =IF(AND(K90>0,C90<>""),"Entrée",(IF(AND(K90>0,F90<>""),"Dépense",""))) ->  | P93: =IF(O93="Entrée",E90,(IF(O93="Dépense",H90,""))) ->  | Q93: =IF(K90>0,B90,"") ->  | R93: =IF(O93="Entrée",C90,(IF(O93="Dépense",F90,""))) ->  | S93: =IF(AND(O93="Entrée",D90="Vrai"),1,0) -> 0 | T93: =(IF(O93="Dépense",G90,"")) -> 
M94: =IF(K91>0,A91,"") ->  | N94: =IF(K91>0,J91,"") ->  | O94: =IF(AND(K91>0,C91<>""),"Entrée",(IF(AND(K91>0,F91<>""),"Dépense",""))) ->  | P94: =IF(O94="Entrée",E91,(IF(O94="Dépense",H91,""))) ->  | Q94: =IF(K91>0,B91,"") ->  | R94: =IF(O94="Entrée",C91,(IF(O94="Dépense",F91,""))) ->  | S94: =IF(AND(O94="Entrée",D91="Vrai"),1,0) -> 0 | T94: =(IF(O94="Dépense",G91,"")) -> 
M95: =IF(K92>0,A92,"") ->  | N95: =IF(K92>0,J92,"") ->  | O95: =IF(AND(K92>0,C92<>""),"Entrée",(IF(AND(K92>0,F92<>""),"Dépense",""))) ->  | P95: =IF(O95="Entrée",E92,(IF(O95="Dépense",H92,""))) ->  | Q95: =IF(K92>0,B92,"") ->  | R95: =IF(O95="Entrée",C92,(IF(O95="Dépense",F92,""))) ->  | S95: =IF(AND(O95="Entrée",D92="Vrai"),1,0) -> 0 | T95: =(IF(O95="Dépense",G92,"")) -> 
M96: =IF(K93>0,A93,"") ->  | N96: =IF(K93>0,J93,"") ->  | O96: =IF(AND(K93>0,C93<>""),"Entrée",(IF(AND(K93>0,F93<>""),"Dépense",""))) ->  | P96: =IF(O96="Entrée",E93,(IF(O96="Dépense",H93,""))) ->  | Q96: =IF(K93>0,B93,"") ->  | R96: =IF(O96="Entrée",C93,(IF(O96="Dépense",F93,""))) ->  | S96: =IF(AND(O96="Entrée",D93="Vrai"),1,0) -> 0 | T96: =(IF(O96="Dépense",G93,"")) -> 
M97: =IF(K94>0,A94,"") ->  | N97: =IF(K94>0,J94,"") ->  | O97: =IF(AND(K94>0,C94<>""),"Entrée",(IF(AND(K94>0,F94<>""),"Dépense",""))) ->  | P97: =IF(O97="Entrée",E94,(IF(O97="Dépense",H94,""))) ->  | Q97: =IF(K94>0,B94,"") ->  | R97: =IF(O97="Entrée",C94,(IF(O97="Dépense",F94,""))) ->  | S97: =IF(AND(O97="Entrée",D94="Vrai"),1,0) -> 0 | T97: =(IF(O97="Dépense",G94,"")) -> 
M98: =IF(K95>0,A95,"") ->  | N98: =IF(K95>0,J95,"") ->  | O98: =IF(AND(K95>0,C95<>""),"Entrée",(IF(AND(K95>0,F95<>""),"Dépense",""))) ->  | P98: =IF(O98="Entrée",E95,(IF(O98="Dépense",H95,""))) ->  | Q98: =IF(K95>0,B95,"") ->  | R98: =IF(O98="Entrée",C95,(IF(O98="Dépense",F95,""))) ->  | S98: =IF(AND(O98="Entrée",D95="Vrai"),1,0) -> 0 | T98: =(IF(O98="Dépense",G95,"")) -> 
M99: =IF(K96>0,A96,"") ->  | N99: =IF(K96>0,J96,"") ->  | O99: =IF(AND(K96>0,C96<>""),"Entrée",(IF(AND(K96>0,F96<>""),"Dépense",""))) ->  | P99: =IF(O99="Entrée",E96,(IF(O99="Dépense",H96,""))) ->  | Q99: =IF(K96>0,B96,"") ->  | R99: =IF(O99="Entrée",C96,(IF(O99="Dépense",F96,""))) ->  | S99: =IF(AND(O99="Entrée",D96="Vrai"),1,0) -> 0 | T99: =(IF(O99="Dépense",G96,"")) -> 
M100: =IF(K97>0,A97,"") ->  | N100: =IF(K97>0,J97,"") ->  | O100: =IF(AND(K97>0,C97<>""),"Entrée",(IF(AND(K97>0,F97<>""),"Dépense",""))) ->  | P100: =IF(O100="Entrée",E97,(IF(O100="Dépense",H97,""))) ->  | Q100: =IF(K97>0,B97,"") ->  | R100: =IF(O100="Entrée",C97,(IF(O100="Dépense",F97,""))) ->  | S100: =IF(AND(O100="Entrée",D97="Vrai"),1,0) -> 0 | T100: =(IF(O100="Dépense",G97,"")) -> 
M101: =IF(K98>0,A98,"") ->  | N101: =IF(K98>0,J98,"") ->  | O101: =IF(AND(K98>0,C98<>""),"Entrée",(IF(AND(K98>0,F98<>""),"Dépense",""))) ->  | P101: =IF(O101="Entrée",E98,(IF(O101="Dépense",H98,""))) ->  | Q101: =IF(K98>0,B98,"") ->  | R101: =IF(O101="Entrée",C98,(IF(O101="Dépense",F98,""))) ->  | S101: =IF(AND(O101="Entrée",D98="Vrai"),1,0) -> 0 | T101: =(IF(O101="Dépense",G98,"")) -> 
M102: =IF(K99>0,A99,"") ->  | N102: =IF(K99>0,J99,"") ->  | O102: =IF(AND(K99>0,C99<>""),"Entrée",(IF(AND(K99>0,F99<>""),"Dépense",""))) ->  | P102: =IF(O102="Entrée",E99,(IF(O102="Dépense",H99,""))) ->  | Q102: =IF(K99>0,B99,"") ->  | R102: =IF(O102="Entrée",C99,(IF(O102="Dépense",F99,""))) ->  | S102: =IF(AND(O102="Entrée",D99="Vrai"),1,0) -> 0 | T102: =(IF(O102="Dépense",G99,"")) -> 
M103: =IF(K100>0,A100,"") ->  | N103: =IF(K100>0,J100,"") ->  | O103: =IF(AND(K100>0,C100<>""),"Entrée",(IF(AND(K100>0,F100<>""),"Dépense",""))) ->  | P103: =IF(O103="Entrée",E100,(IF(O103="Dépense",H100,""))) ->  | Q103: =IF(K100>0,B100,"") ->  | R103: =IF(O103="Entrée",C100,(IF(O103="Dépense",F100,""))) ->  | S103: =IF(AND(O103="Entrée",D100="Vrai"),1,0) -> 0 | T103: =(IF(O103="Dépense",G100,"")) -> 
M104: =IF(K101>0,A101,"") ->  | N104: =IF(K101>0,J101,"") ->  | O104: =IF(AND(K101>0,C101<>""),"Entrée",(IF(AND(K101>0,F101<>""),"Dépense",""))) ->  | P104: =IF(O104="Entrée",E101,(IF(O104="Dépense",H101,""))) ->  | Q104: =IF(K101>0,B101,"") ->  | R104: =IF(O104="Entrée",C101,(IF(O104="Dépense",F101,""))) ->  | S104: =IF(AND(O104="Entrée",D101="Vrai"),1,0) -> 0 | T104: =(IF(O104="Dépense",G101,"")) -> 
M105: =IF(K102>0,A102,"") ->  | N105: =IF(K102>0,J102,"") ->  | O105: =IF(AND(K102>0,C102<>""),"Entrée",(IF(AND(K102>0,F102<>""),"Dépense",""))) ->  | P105: =IF(O105="Entrée",E102,(IF(O105="Dépense",H102,""))) ->  | Q105: =IF(K102>0,B102,"") ->  | R105: =IF(O105="Entrée",C102,(IF(O105="Dépense",F102,""))) ->  | S105: =IF(AND(O105="Entrée",D102="Vrai"),1,0) -> 0 | T105: =(IF(O105="Dépense",G102,"")) -> 
M106: =IF(K103>0,A103,"") ->  | N106: =IF(K103>0,J103,"") ->  | O106: =IF(AND(K103>0,C103<>""),"Entrée",(IF(AND(K103>0,F103<>""),"Dépense",""))) ->  | P106: =IF(O106="Entrée",E103,(IF(O106="Dépense",H103,""))) ->  | Q106: =IF(K103>0,B103,"") ->  | R106: =IF(O106="Entrée",C103,(IF(O106="Dépense",F103,""))) ->  | S106: =IF(AND(O106="Entrée",D103="Vrai"),1,0) -> 0 | T106: =(IF(O106="Dépense",G103,"")) -> 
M107: =IF(K104>0,A104,"") ->  | N107: =IF(K104>0,J104,"") ->  | O107: =IF(AND(K104>0,C104<>""),"Entrée",(IF(AND(K104>0,F104<>""),"Dépense",""))) ->  | P107: =IF(O107="Entrée",E104,(IF(O107="Dépense",H104,""))) ->  | Q107: =IF(K104>0,B104,"") ->  | R107: =IF(O107="Entrée",C104,(IF(O107="Dépense",F104,""))) ->  | S107: =IF(AND(O107="Entrée",D104="Vrai"),1,0) -> 0 | T107: =(IF(O107="Dépense",G104,"")) -> 
M108: =IF(K105>0,A105,"") ->  | N108: =IF(K105>0,J105,"") ->  | O108: =IF(AND(K105>0,C105<>""),"Entrée",(IF(AND(K105>0,F105<>""),"Dépense",""))) ->  | P108: =IF(O108="Entrée",E105,(IF(O108="Dépense",H105,""))) ->  | Q108: =IF(K105>0,B105,"") ->  | R108: =IF(O108="Entrée",C105,(IF(O108="Dépense",F105,""))) ->  | S108: =IF(AND(O108="Entrée",D105="Vrai"),1,0) -> 0 | T108: =(IF(O108="Dépense",G105,"")) -> 
M109: =IF(K106>0,A106,"") ->  | N109: =IF(K106>0,J106,"") ->  | O109: =IF(AND(K106>0,C106<>""),"Entrée",(IF(AND(K106>0,F106<>""),"Dépense",""))) ->  | P109: =IF(O109="Entrée",E106,(IF(O109="Dépense",H106,""))) ->  | Q109: =IF(K106>0,B106,"") ->  | R109: =IF(O109="Entrée",C106,(IF(O109="Dépense",F106,""))) ->  | S109: =IF(AND(O109="Entrée",D106="Vrai"),1,0) -> 0 | T109: =(IF(O109="Dépense",G106,"")) -> 
M110: =IF(K107>0,A107,"") ->  | N110: =IF(K107>0,J107,"") ->  | O110: =IF(AND(K107>0,C107<>""),"Entrée",(IF(AND(K107>0,F107<>""),"Dépense",""))) ->  | P110: =IF(O110="Entrée",E107,(IF(O110="Dépense",H107,""))) ->  | Q110: =IF(K107>0,B107,"") ->  | R110: =IF(O110="Entrée",C107,(IF(O110="Dépense",F107,""))) ->  | S110: =IF(AND(O110="Entrée",D107="Vrai"),1,0) -> 0 | T110: =(IF(O110="Dépense",G107,"")) -> 
M111: =IF(K108>0,A108,"") ->  | N111: =IF(K108>0,J108,"") ->  | O111: =IF(AND(K108>0,C108<>""),"Entrée",(IF(AND(K108>0,F108<>""),"Dépense",""))) ->  | P111: =IF(O111="Entrée",E108,(IF(O111="Dépense",H108,""))) ->  | Q111: =IF(K108>0,B108,"") ->  | R111: =IF(O111="Entrée",C108,(IF(O111="Dépense",F108,""))) ->  | S111: =IF(AND(O111="Entrée",D108="Vrai"),1,0) -> 0 | T111: =(IF(O111="Dépense",G108,"")) -> 
M112: =IF(K109>0,A109,"") ->  | N112: =IF(K109>0,J109,"") ->  | O112: =IF(AND(K109>0,C109<>""),"Entrée",(IF(AND(K109>0,F109<>""),"Dépense",""))) ->  | P112: =IF(O112="Entrée",E109,(IF(O112="Dépense",H109,""))) ->  | Q112: =IF(K109>0,B109,"") ->  | R112: =IF(O112="Entrée",C109,(IF(O112="Dépense",F109,""))) ->  | S112: =IF(AND(O112="Entrée",D109="Vrai"),1,0) -> 0 | T112: =(IF(O112="Dépense",G109,"")) -> 
M113: =IF(K110>0,A110,"") ->  | N113: =IF(K110>0,J110,"") ->  | O113: =IF(AND(K110>0,C110<>""),"Entrée",(IF(AND(K110>0,F110<>""),"Dépense",""))) ->  | P113: =IF(O113="Entrée",E110,(IF(O113="Dépense",H110,""))) ->  | Q113: =IF(K110>0,B110,"") ->  | R113: =IF(O113="Entrée",C110,(IF(O113="Dépense",F110,""))) ->  | S113: =IF(AND(O113="Entrée",D110="Vrai"),1,0) -> 0 | T113: =(IF(O113="Dépense",G110,"")) -> 
M114: =IF(K111>0,A111,"") ->  | N114: =IF(K111>0,J111,"") ->  | O114: =IF(AND(K111>0,C111<>""),"Entrée",(IF(AND(K111>0,F111<>""),"Dépense",""))) ->  | P114: =IF(O114="Entrée",E111,(IF(O114="Dépense",H111,""))) ->  | Q114: =IF(K111>0,B111,"") ->  | R114: =IF(O114="Entrée",C111,(IF(O114="Dépense",F111,""))) ->  | S114: =IF(AND(O114="Entrée",D111="Vrai"),1,0) -> 0 | T114: =(IF(O114="Dépense",G111,"")) -> 
M115: =IF(K112>0,A112,"") ->  | N115: =IF(K112>0,J112,"") ->  | O115: =IF(AND(K112>0,C112<>""),"Entrée",(IF(AND(K112>0,F112<>""),"Dépense",""))) ->  | P115: =IF(O115="Entrée",E112,(IF(O115="Dépense",H112,""))) ->  | Q115: =IF(K112>0,B112,"") ->  | R115: =IF(O115="Entrée",C112,(IF(O115="Dépense",F112,""))) ->  | S115: =IF(AND(O115="Entrée",D112="Vrai"),1,0) -> 0 | T115: =(IF(O115="Dépense",G112,"")) -> 
M116: =IF(K113>0,A113,"") ->  | N116: =IF(K113>0,J113,"") ->  | O116: =IF(AND(K113>0,C113<>""),"Entrée",(IF(AND(K113>0,F113<>""),"Dépense",""))) ->  | P116: =IF(O116="Entrée",E113,(IF(O116="Dépense",H113,""))) ->  | Q116: =IF(K113>0,B113,"") ->  | R116: =IF(O116="Entrée",C113,(IF(O116="Dépense",F113,""))) ->  | S116: =IF(AND(O116="Entrée",D113="Vrai"),1,0) -> 0 | T116: =(IF(O116="Dépense",G113,"")) -> 
M117: =IF(K114>0,A114,"") ->  | N117: =IF(K114>0,J114,"") ->  | O117: =IF(AND(K114>0,C114<>""),"Entrée",(IF(AND(K114>0,F114<>""),"Dépense",""))) ->  | P117: =IF(O117="Entrée",E114,(IF(O117="Dépense",H114,""))) ->  | Q117: =IF(K114>0,B114,"") ->  | R117: =IF(O117="Entrée",C114,(IF(O117="Dépense",F114,""))) ->  | S117: =IF(AND(O117="Entrée",D114="Vrai"),1,0) -> 0 | T117: =(IF(O117="Dépense",G114,"")) -> 
M118: =IF(K115>0,A115,"") ->  | N118: =IF(K115>0,J115,"") ->  | O118: =IF(AND(K115>0,C115<>""),"Entrée",(IF(AND(K115>0,F115<>""),"Dépense",""))) ->  | P118: =IF(O118="Entrée",E115,(IF(O118="Dépense",H115,""))) ->  | Q118: =IF(K115>0,B115,"") ->  | R118: =IF(O118="Entrée",C115,(IF(O118="Dépense",F115,""))) ->  | S118: =IF(AND(O118="Entrée",D115="Vrai"),1,0) -> 0 | T118: =(IF(O118="Dépense",G115,"")) -> 
M119: =IF(K116>0,A116,"") ->  | N119: =IF(K116>0,J116,"") ->  | O119: =IF(AND(K116>0,C116<>""),"Entrée",(IF(AND(K116>0,F116<>""),"Dépense",""))) ->  | P119: =IF(O119="Entrée",E116,(IF(O119="Dépense",H116,""))) ->  | Q119: =IF(K116>0,B116,"") ->  | R119: =IF(O119="Entrée",C116,(IF(O119="Dépense",F116,""))) ->  | S119: =IF(AND(O119="Entrée",D116="Vrai"),1,0) -> 0 | T119: =(IF(O119="Dépense",G116,"")) -> 
M120: =IF(K117>0,A117,"") ->  | N120: =IF(K117>0,J117,"") ->  | O120: =IF(AND(K117>0,C117<>""),"Entrée",(IF(AND(K117>0,F117<>""),"Dépense",""))) ->  | P120: =IF(O120="Entrée",E117,(IF(O120="Dépense",H117,""))) ->  | Q120: =IF(K117>0,B117,"") ->  | R120: =IF(O120="Entrée",C117,(IF(O120="Dépense",F117,""))) ->  | S120: =IF(AND(O120="Entrée",D117="Vrai"),1,0) -> 0 | T120: =(IF(O120="Dépense",G117,"")) -> 
M121: =IF(K118>0,A118,"") ->  | N121: =IF(K118>0,J118,"") ->  | O121: =IF(AND(K118>0,C118<>""),"Entrée",(IF(AND(K118>0,F118<>""),"Dépense",""))) ->  | P121: =IF(O121="Entrée",E118,(IF(O121="Dépense",H118,""))) ->  | Q121: =IF(K118>0,B118,"") ->  | R121: =IF(O121="Entrée",C118,(IF(O121="Dépense",F118,""))) ->  | S121: =IF(AND(O121="Entrée",D118="Vrai"),1,0) -> 0 | T121: =(IF(O121="Dépense",G118,"")) -> 
M122: =IF(K119>0,A119,"") ->  | N122: =IF(K119>0,J119,"") ->  | O122: =IF(AND(K119>0,C119<>""),"Entrée",(IF(AND(K119>0,F119<>""),"Dépense",""))) ->  | P122: =IF(O122="Entrée",E119,(IF(O122="Dépense",H119,""))) ->  | Q122: =IF(K119>0,B119,"") ->  | R122: =IF(O122="Entrée",C119,(IF(O122="Dépense",F119,""))) ->  | S122: =IF(AND(O122="Entrée",D119="Vrai"),1,0) -> 0 | T122: =(IF(O122="Dépense",G119,"")) -> 
M123: =IF(K120>0,A120,"") ->  | N123: =IF(K120>0,J120,"") ->  | O123: =IF(AND(K120>0,C120<>""),"Entrée",(IF(AND(K120>0,F120<>""),"Dépense",""))) ->  | P123: =IF(O123="Entrée",E120,(IF(O123="Dépense",H120,""))) ->  | Q123: =IF(K120>0,B120,"") ->  | R123: =IF(O123="Entrée",C120,(IF(O123="Dépense",F120,""))) ->  | S123: =IF(AND(O123="Entrée",D120="Vrai"),1,0) -> 0 | T123: =(IF(O123="Dépense",G120,"")) -> 
M124: =IF(K121>0,A121,"") ->  | N124: =IF(K121>0,J121,"") ->  | O124: =IF(AND(K121>0,C121<>""),"Entrée",(IF(AND(K121>0,F121<>""),"Dépense",""))) ->  | P124: =IF(O124="Entrée",E121,(IF(O124="Dépense",H121,""))) ->  | Q124: =IF(K121>0,B121,"") ->  | R124: =IF(O124="Entrée",C121,(IF(O124="Dépense",F121,""))) ->  | S124: =IF(AND(O124="Entrée",D121="Vrai"),1,0) -> 0 | T124: =(IF(O124="Dépense",G121,"")) -> 
M125: =IF(K122>0,A122,"") ->  | N125: =IF(K122>0,J122,"") ->  | O125: =IF(AND(K122>0,C122<>""),"Entrée",(IF(AND(K122>0,F122<>""),"Dépense",""))) ->  | P125: =IF(O125="Entrée",E122,(IF(O125="Dépense",H122,""))) ->  | Q125: =IF(K122>0,B122,"") ->  | R125: =IF(O125="Entrée",C122,(IF(O125="Dépense",F122,""))) ->  | S125: =IF(AND(O125="Entrée",D122="Vrai"),1,0) -> 0 | T125: =(IF(O125="Dépense",G122,"")) -> 
M126: =IF(K123>0,A123,"") ->  | N126: =IF(K123>0,J123,"") ->  | O126: =IF(AND(K123>0,C123<>""),"Entrée",(IF(AND(K123>0,F123<>""),"Dépense",""))) ->  | P126: =IF(O126="Entrée",E123,(IF(O126="Dépense",H123,""))) ->  | Q126: =IF(K123>0,B123,"") ->  | R126: =IF(O126="Entrée",C123,(IF(O126="Dépense",F123,""))) ->  | S126: =IF(AND(O126="Entrée",D123="Vrai"),1,0) -> 0 | T126: =(IF(O126="Dépense",G123,"")) -> 
M127: =IF(K124>0,A124,"") ->  | N127: =IF(K124>0,J124,"") ->  | O127: =IF(AND(K124>0,C124<>""),"Entrée",(IF(AND(K124>0,F124<>""),"Dépense",""))) ->  | P127: =IF(O127="Entrée",E124,(IF(O127="Dépense",H124,""))) ->  | Q127: =IF(K124>0,B124,"") ->  | R127: =IF(O127="Entrée",C124,(IF(O127="Dépense",F124,""))) ->  | S127: =IF(AND(O127="Entrée",D124="Vrai"),1,0) -> 0 | T127: =(IF(O127="Dépense",G124,"")) -> 
M128: =IF(K125>0,A125,"") ->  | N128: =IF(K125>0,J125,"") ->  | O128: =IF(AND(K125>0,C125<>""),"Entrée",(IF(AND(K125>0,F125<>""),"Dépense",""))) ->  | P128: =IF(O128="Entrée",E125,(IF(O128="Dépense",H125,""))) ->  | Q128: =IF(K125>0,B125,"") ->  | R128: =IF(O128="Entrée",C125,(IF(O128="Dépense",F125,""))) ->  | S128: =IF(AND(O128="Entrée",D125="Vrai"),1,0) -> 0 | T128: =(IF(O128="Dépense",G125,"")) -> 
M129: =IF(K126>0,A126,"") ->  | N129: =IF(K126>0,J126,"") ->  | O129: =IF(AND(K126>0,C126<>""),"Entrée",(IF(AND(K126>0,F126<>""),"Dépense",""))) ->  | P129: =IF(O129="Entrée",E126,(IF(O129="Dépense",H126,""))) ->  | Q129: =IF(K126>0,B126,"") ->  | R129: =IF(O129="Entrée",C126,(IF(O129="Dépense",F126,""))) ->  | S129: =IF(AND(O129="Entrée",D126="Vrai"),1,0) -> 0 | T129: =(IF(O129="Dépense",G126,"")) -> 
M130: =IF(K127>0,A127,"") ->  | N130: =IF(K127>0,J127,"") ->  | O130: =IF(AND(K127>0,C127<>""),"Entrée",(IF(AND(K127>0,F127<>""),"Dépense",""))) ->  | P130: =IF(O130="Entrée",E127,(IF(O130="Dépense",H127,""))) ->  | Q130: =IF(K127>0,B127,"") ->  | R130: =IF(O130="Entrée",C127,(IF(O130="Dépense",F127,""))) ->  | S130: =IF(AND(O130="Entrée",D127="Vrai"),1,0) -> 0 | T130: =(IF(O130="Dépense",G127,"")) -> 
M131: =IF(K128>0,A128,"") ->  | N131: =IF(K128>0,J128,"") ->  | O131: =IF(AND(K128>0,C128<>""),"Entrée",(IF(AND(K128>0,F128<>""),"Dépense",""))) ->  | P131: =IF(O131="Entrée",E128,(IF(O131="Dépense",H128,""))) ->  | Q131: =IF(K128>0,B128,"") ->  | R131: =IF(O131="Entrée",C128,(IF(O131="Dépense",F128,""))) ->  | S131: =IF(AND(O131="Entrée",D128="Vrai"),1,0) -> 0 | T131: =(IF(O131="Dépense",G128,"")) -> 
M132: =IF(K129>0,A129,"") ->  | N132: =IF(K129>0,J129,"") ->  | O132: =IF(AND(K129>0,C129<>""),"Entrée",(IF(AND(K129>0,F129<>""),"Dépense",""))) ->  | P132: =IF(O132="Entrée",E129,(IF(O132="Dépense",H129,""))) ->  | Q132: =IF(K129>0,B129,"") ->  | R132: =IF(O132="Entrée",C129,(IF(O132="Dépense",F129,""))) ->  | S132: =IF(AND(O132="Entrée",D129="Vrai"),1,0) -> 0 | T132: =(IF(O132="Dépense",G129,"")) -> 
M133: =IF(K130>0,A130,"") ->  | N133: =IF(K130>0,J130,"") ->  | O133: =IF(AND(K130>0,C130<>""),"Entrée",(IF(AND(K130>0,F130<>""),"Dépense",""))) ->  | P133: =IF(O133="Entrée",E130,(IF(O133="Dépense",H130,""))) ->  | Q133: =IF(K130>0,B130,"") ->  | R133: =IF(O133="Entrée",C130,(IF(O133="Dépense",F130,""))) ->  | S133: =IF(AND(O133="Entrée",D130="Vrai"),1,0) -> 0 | T133: =(IF(O133="Dépense",G130,"")) -> 
M134: =IF(K131>0,A131,"") ->  | N134: =IF(K131>0,J131,"") ->  | O134: =IF(AND(K131>0,C131<>""),"Entrée",(IF(AND(K131>0,F131<>""),"Dépense",""))) ->  | P134: =IF(O134="Entrée",E131,(IF(O134="Dépense",H131,""))) ->  | Q134: =IF(K131>0,B131,"") ->  | R134: =IF(O134="Entrée",C131,(IF(O134="Dépense",F131,""))) ->  | S134: =IF(AND(O134="Entrée",D131="Vrai"),1,0) -> 0 | T134: =(IF(O134="Dépense",G131,"")) -> 
M135: =IF(K132>0,A132,"") ->  | N135: =IF(K132>0,J132,"") ->  | O135: =IF(AND(K132>0,C132<>""),"Entrée",(IF(AND(K132>0,F132<>""),"Dépense",""))) ->  | P135: =IF(O135="Entrée",E132,(IF(O135="Dépense",H132,""))) ->  | Q135: =IF(K132>0,B132,"") ->  | R135: =IF(O135="Entrée",C132,(IF(O135="Dépense",F132,""))) ->  | S135: =IF(AND(O135="Entrée",D132="Vrai"),1,0) -> 0 | T135: =(IF(O135="Dépense",G132,"")) -> 
M136: =IF(K133>0,A133,"") ->  | N136: =IF(K133>0,J133,"") ->  | O136: =IF(AND(K133>0,C133<>""),"Entrée",(IF(AND(K133>0,F133<>""),"Dépense",""))) ->  | P136: =IF(O136="Entrée",E133,(IF(O136="Dépense",H133,""))) ->  | Q136: =IF(K133>0,B133,"") ->  | R136: =IF(O136="Entrée",C133,(IF(O136="Dépense",F133,""))) ->  | S136: =IF(AND(O136="Entrée",D133="Vrai"),1,0) -> 0 | T136: =(IF(O136="Dépense",G133,"")) -> 
M137: =IF(K134>0,A134,"") ->  | N137: =IF(K134>0,J134,"") ->  | O137: =IF(AND(K134>0,C134<>""),"Entrée",(IF(AND(K134>0,F134<>""),"Dépense",""))) ->  | P137: =IF(O137="Entrée",E134,(IF(O137="Dépense",H134,""))) ->  | Q137: =IF(K134>0,B134,"") ->  | R137: =IF(O137="Entrée",C134,(IF(O137="Dépense",F134,""))) ->  | S137: =IF(AND(O137="Entrée",D134="Vrai"),1,0) -> 0 | T137: =(IF(O137="Dépense",G134,"")) -> 
M138: =IF(K135>0,A135,"") ->  | N138: =IF(K135>0,J135,"") ->  | O138: =IF(AND(K135>0,C135<>""),"Entrée",(IF(AND(K135>0,F135<>""),"Dépense",""))) ->  | P138: =IF(O138="Entrée",E135,(IF(O138="Dépense",H135,""))) ->  | Q138: =IF(K135>0,B135,"") ->  | R138: =IF(O138="Entrée",C135,(IF(O138="Dépense",F135,""))) ->  | S138: =IF(AND(O138="Entrée",D135="Vrai"),1,0) -> 0 | T138: =(IF(O138="Dépense",G135,"")) -> 
M139: =IF(K136>0,A136,"") ->  | N139: =IF(K136>0,J136,"") ->  | O139: =IF(AND(K136>0,C136<>""),"Entrée",(IF(AND(K136>0,F136<>""),"Dépense",""))) ->  | P139: =IF(O139="Entrée",E136,(IF(O139="Dépense",H136,""))) ->  | Q139: =IF(K136>0,B136,"") ->  | R139: =IF(O139="Entrée",C136,(IF(O139="Dépense",F136,""))) ->  | S139: =IF(AND(O139="Entrée",D136="Vrai"),1,0) -> 0 | T139: =(IF(O139="Dépense",G136,"")) -> 
M140: =IF(K137>0,A137,"") ->  | N140: =IF(K137>0,J137,"") ->  | O140: =IF(AND(K137>0,C137<>""),"Entrée",(IF(AND(K137>0,F137<>""),"Dépense",""))) ->  | P140: =IF(O140="Entrée",E137,(IF(O140="Dépense",H137,""))) ->  | Q140: =IF(K137>0,B137,"") ->  | R140: =IF(O140="Entrée",C137,(IF(O140="Dépense",F137,""))) ->  | S140: =IF(AND(O140="Entrée",D137="Vrai"),1,0) -> 0 | T140: =(IF(O140="Dépense",G137,"")) -> 
M141: =IF(K138>0,A138,"") ->  | N141: =IF(K138>0,J138,"") ->  | O141: =IF(AND(K138>0,C138<>""),"Entrée",(IF(AND(K138>0,F138<>""),"Dépense",""))) ->  | P141: =IF(O141="Entrée",E138,(IF(O141="Dépense",H138,""))) ->  | Q141: =IF(K138>0,B138,"") ->  | R141: =IF(O141="Entrée",C138,(IF(O141="Dépense",F138,""))) ->  | S141: =IF(AND(O141="Entrée",D138="Vrai"),1,0) -> 0 | T141: =(IF(O141="Dépense",G138,"")) -> 
M142: =IF(K139>0,A139,"") ->  | N142: =IF(K139>0,J139,"") ->  | O142: =IF(AND(K139>0,C139<>""),"Entrée",(IF(AND(K139>0,F139<>""),"Dépense",""))) ->  | P142: =IF(O142="Entrée",E139,(IF(O142="Dépense",H139,""))) ->  | Q142: =IF(K139>0,B139,"") ->  | R142: =IF(O142="Entrée",C139,(IF(O142="Dépense",F139,""))) ->  | S142: =IF(AND(O142="Entrée",D139="Vrai"),1,0) -> 0 | T142: =(IF(O142="Dépense",G139,"")) -> 
M143: =IF(K140>0,A140,"") ->  | N143: =IF(K140>0,J140,"") ->  | O143: =IF(AND(K140>0,C140<>""),"Entrée",(IF(AND(K140>0,F140<>""),"Dépense",""))) ->  | P143: =IF(O143="Entrée",E140,(IF(O143="Dépense",H140,""))) ->  | Q143: =IF(K140>0,B140,"") ->  | R143: =IF(O143="Entrée",C140,(IF(O143="Dépense",F140,""))) ->  | S143: =IF(AND(O143="Entrée",D140="Vrai"),1,0) -> 0 | T143: =(IF(O143="Dépense",G140,"")) -> 
M144: =IF(K141>0,A141,"") ->  | N144: =IF(K141>0,J141,"") ->  | O144: =IF(AND(K141>0,C141<>""),"Entrée",(IF(AND(K141>0,F141<>""),"Dépense",""))) ->  | P144: =IF(O144="Entrée",E141,(IF(O144="Dépense",H141,""))) ->  | Q144: =IF(K141>0,B141,"") ->  | R144: =IF(O144="Entrée",C141,(IF(O144="Dépense",F141,""))) ->  | S144: =IF(AND(O144="Entrée",D141="Vrai"),1,0) -> 0 | T144: =(IF(O144="Dépense",G141,"")) -> 
M145: =IF(K142>0,A142,"") ->  | N145: =IF(K142>0,J142,"") ->  | O145: =IF(AND(K142>0,C142<>""),"Entrée",(IF(AND(K142>0,F142<>""),"Dépense",""))) ->  | P145: =IF(O145="Entrée",E142,(IF(O145="Dépense",H142,""))) ->  | Q145: =IF(K142>0,B142,"") ->  | R145: =IF(O145="Entrée",C142,(IF(O145="Dépense",F142,""))) ->  | S145: =IF(AND(O145="Entrée",D142="Vrai"),1,0) -> 0 | T145: =(IF(O145="Dépense",G142,"")) -> 
M146: =IF(K143>0,A143,"") ->  | N146: =IF(K143>0,J143,"") ->  | O146: =IF(AND(K143>0,C143<>""),"Entrée",(IF(AND(K143>0,F143<>""),"Dépense",""))) ->  | P146: =IF(O146="Entrée",E143,(IF(O146="Dépense",H143,""))) ->  | Q146: =IF(K143>0,B143,"") ->  | R146: =IF(O146="Entrée",C143,(IF(O146="Dépense",F143,""))) ->  | S146: =IF(AND(O146="Entrée",D143="Vrai"),1,0) -> 0 | T146: =(IF(O146="Dépense",G143,"")) -> 
M147: =IF(K144>0,A144,"") ->  | N147: =IF(K144>0,J144,"") ->  | O147: =IF(AND(K144>0,C144<>""),"Entrée",(IF(AND(K144>0,F144<>""),"Dépense",""))) ->  | P147: =IF(O147="Entrée",E144,(IF(O147="Dépense",H144,""))) ->  | Q147: =IF(K144>0,B144,"") ->  | R147: =IF(O147="Entrée",C144,(IF(O147="Dépense",F144,""))) ->  | S147: =IF(AND(O147="Entrée",D144="Vrai"),1,0) -> 0 | T147: =(IF(O147="Dépense",G144,"")) -> 
M148: =IF(K145>0,A145,"") ->  | N148: =IF(K145>0,J145,"") ->  | O148: =IF(AND(K145>0,C145<>""),"Entrée",(IF(AND(K145>0,F145<>""),"Dépense",""))) ->  | P148: =IF(O148="Entrée",E145,(IF(O148="Dépense",H145,""))) ->  | Q148: =IF(K145>0,B145,"") ->  | R148: =IF(O148="Entrée",C145,(IF(O148="Dépense",F145,""))) ->  | S148: =IF(AND(O148="Entrée",D145="Vrai"),1,0) -> 0 | T148: =(IF(O148="Dépense",G145,"")) -> 
M149: =IF(K146>0,A146,"") ->  | N149: =IF(K146>0,J146,"") ->  | O149: =IF(AND(K146>0,C146<>""),"Entrée",(IF(AND(K146>0,F146<>""),"Dépense",""))) ->  | P149: =IF(O149="Entrée",E146,(IF(O149="Dépense",H146,""))) ->  | Q149: =IF(K146>0,B146,"") ->  | R149: =IF(O149="Entrée",C146,(IF(O149="Dépense",F146,""))) ->  | S149: =IF(AND(O149="Entrée",D146="Vrai"),1,0) -> 0 | T149: =(IF(O149="Dépense",G146,"")) -> 
M150: =IF(K147>0,A147,"") ->  | N150: =IF(K147>0,J147,"") ->  | O150: =IF(AND(K147>0,C147<>""),"Entrée",(IF(AND(K147>0,F147<>""),"Dépense",""))) ->  | P150: =IF(O150="Entrée",E147,(IF(O150="Dépense",H147,""))) ->  | Q150: =IF(K147>0,B147,"") ->  | R150: =IF(O150="Entrée",C147,(IF(O150="Dépense",F147,""))) ->  | S150: =IF(AND(O150="Entrée",D147="Vrai"),1,0) -> 0 | T150: =(IF(O150="Dépense",G147,"")) -> 
M151: =IF(K148>0,A148,"") ->  | N151: =IF(K148>0,J148,"") ->  | O151: =IF(AND(K148>0,C148<>""),"Entrée",(IF(AND(K148>0,F148<>""),"Dépense",""))) ->  | P151: =IF(O151="Entrée",E148,(IF(O151="Dépense",H148,""))) ->  | Q151: =IF(K148>0,B148,"") ->  | R151: =IF(O151="Entrée",C148,(IF(O151="Dépense",F148,""))) ->  | S151: =IF(AND(O151="Entrée",D148="Vrai"),1,0) -> 0 | T151: =(IF(O151="Dépense",G148,"")) -> 
M152: =IF(K149>0,A149,"") ->  | N152: =IF(K149>0,J149,"") ->  | O152: =IF(AND(K149>0,C149<>""),"Entrée",(IF(AND(K149>0,F149<>""),"Dépense",""))) ->  | P152: =IF(O152="Entrée",E149,(IF(O152="Dépense",H149,""))) ->  | Q152: =IF(K149>0,B149,"") ->  | R152: =IF(O152="Entrée",C149,(IF(O152="Dépense",F149,""))) ->  | S152: =IF(AND(O152="Entrée",D149="Vrai"),1,0) -> 0 | T152: =(IF(O152="Dépense",G149,"")) -> 
M153: =IF(K150>0,A150,"") ->  | N153: =IF(K150>0,J150,"") ->  | O153: =IF(AND(K150>0,C150<>""),"Entrée",(IF(AND(K150>0,F150<>""),"Dépense",""))) ->  | P153: =IF(O153="Entrée",E150,(IF(O153="Dépense",H150,""))) ->  | Q153: =IF(K150>0,B150,"") ->  | R153: =IF(O153="Entrée",C150,(IF(O153="Dépense",F150,""))) ->  | S153: =IF(AND(O153="Entrée",D150="Vrai"),1,0) -> 0 | T153: =(IF(O153="Dépense",G150,"")) -> 
M154: =IF(K151>0,A151,"") ->  | N154: =IF(K151>0,J151,"") ->  | O154: =IF(AND(K151>0,C151<>""),"Entrée",(IF(AND(K151>0,F151<>""),"Dépense",""))) ->  | P154: =IF(O154="Entrée",E151,(IF(O154="Dépense",H151,""))) ->  | Q154: =IF(K151>0,B151,"") ->  | R154: =IF(O154="Entrée",C151,(IF(O154="Dépense",F151,""))) ->  | S154: =IF(AND(O154="Entrée",D151="Vrai"),1,0) -> 0 | T154: =(IF(O154="Dépense",G151,"")) -> 
M155: =IF(K152>0,A152,"") ->  | N155: =IF(K152>0,J152,"") ->  | O155: =IF(AND(K152>0,C152<>""),"Entrée",(IF(AND(K152>0,F152<>""),"Dépense",""))) ->  | P155: =IF(O155="Entrée",E152,(IF(O155="Dépense",H152,""))) ->  | Q155: =IF(K152>0,B152,"") ->  | R155: =IF(O155="Entrée",C152,(IF(O155="Dépense",F152,""))) ->  | S155: =IF(AND(O155="Entrée",D152="Vrai"),1,0) -> 0 | T155: =(IF(O155="Dépense",G152,"")) -> 
M156: =IF(K153>0,A153,"") ->  | N156: =IF(K153>0,J153,"") ->  | O156: =IF(AND(K153>0,C153<>""),"Entrée",(IF(AND(K153>0,F153<>""),"Dépense",""))) ->  | P156: =IF(O156="Entrée",E153,(IF(O156="Dépense",H153,""))) ->  | Q156: =IF(K153>0,B153,"") ->  | R156: =IF(O156="Entrée",C153,(IF(O156="Dépense",F153,""))) ->  | S156: =IF(AND(O156="Entrée",D153="Vrai"),1,0) -> 0 | T156: =(IF(O156="Dépense",G153,"")) -> 
M157: =IF(K154>0,A154,"") ->  | N157: =IF(K154>0,J154,"") ->  | O157: =IF(AND(K154>0,C154<>""),"Entrée",(IF(AND(K154>0,F154<>""),"Dépense",""))) ->  | P157: =IF(O157="Entrée",E154,(IF(O157="Dépense",H154,""))) ->  | Q157: =IF(K154>0,B154,"") ->  | R157: =IF(O157="Entrée",C154,(IF(O157="Dépense",F154,""))) ->  | S157: =IF(AND(O157="Entrée",D154="Vrai"),1,0) -> 0 | T157: =(IF(O157="Dépense",G154,"")) -> 
M158: =IF(K155>0,A155,"") ->  | N158: =IF(K155>0,J155,"") ->  | O158: =IF(AND(K155>0,C155<>""),"Entrée",(IF(AND(K155>0,F155<>""),"Dépense",""))) ->  | P158: =IF(O158="Entrée",E155,(IF(O158="Dépense",H155,""))) ->  | Q158: =IF(K155>0,B155,"") ->  | R158: =IF(O158="Entrée",C155,(IF(O158="Dépense",F155,""))) ->  | S158: =IF(AND(O158="Entrée",D155="Vrai"),1,0) -> 0 | T158: =(IF(O158="Dépense",G155,"")) -> 
M159: =IF(K156>0,A156,"") ->  | N159: =IF(K156>0,J156,"") ->  | O159: =IF(AND(K156>0,C156<>""),"Entrée",(IF(AND(K156>0,F156<>""),"Dépense",""))) ->  | P159: =IF(O159="Entrée",E156,(IF(O159="Dépense",H156,""))) ->  | Q159: =IF(K156>0,B156,"") ->  | R159: =IF(O159="Entrée",C156,(IF(O159="Dépense",F156,""))) ->  | S159: =IF(AND(O159="Entrée",D156="Vrai"),1,0) -> 0 | T159: =(IF(O159="Dépense",G156,"")) -> 
M160: =IF(K157>0,A157,"") ->  | N160: =IF(K157>0,J157,"") ->  | O160: =IF(AND(K157>0,C157<>""),"Entrée",(IF(AND(K157>0,F157<>""),"Dépense",""))) ->  | P160: =IF(O160="Entrée",E157,(IF(O160="Dépense",H157,""))) ->  | Q160: =IF(K157>0,B157,"") ->  | R160: =IF(O160="Entrée",C157,(IF(O160="Dépense",F157,""))) ->  | S160: =IF(AND(O160="Entrée",D157="Vrai"),1,0) -> 0 | T160: =(IF(O160="Dépense",G157,"")) -> 
M161: =IF(K158>0,A158,"") ->  | N161: =IF(K158>0,J158,"") ->  | O161: =IF(AND(K158>0,C158<>""),"Entrée",(IF(AND(K158>0,F158<>""),"Dépense",""))) ->  | P161: =IF(O161="Entrée",E158,(IF(O161="Dépense",H158,""))) ->  | Q161: =IF(K158>0,B158,"") ->  | R161: =IF(O161="Entrée",C158,(IF(O161="Dépense",F158,""))) ->  | S161: =IF(AND(O161="Entrée",D158="Vrai"),1,0) -> 0 | T161: =(IF(O161="Dépense",G158,"")) -> 
M162: =IF(K159>0,A159,"") ->  | N162: =IF(K159>0,J159,"") ->  | O162: =IF(AND(K159>0,C159<>""),"Entrée",(IF(AND(K159>0,F159<>""),"Dépense",""))) ->  | P162: =IF(O162="Entrée",E159,(IF(O162="Dépense",H159,""))) ->  | Q162: =IF(K159>0,B159,"") ->  | R162: =IF(O162="Entrée",C159,(IF(O162="Dépense",F159,""))) ->  | S162: =IF(AND(O162="Entrée",D159="Vrai"),1,0) -> 0 | T162: =(IF(O162="Dépense",G159,"")) -> 
M163: =IF(K160>0,A160,"") ->  | N163: =IF(K160>0,J160,"") ->  | O163: =IF(AND(K160>0,C160<>""),"Entrée",(IF(AND(K160>0,F160<>""),"Dépense",""))) ->  | P163: =IF(O163="Entrée",E160,(IF(O163="Dépense",H160,""))) ->  | Q163: =IF(K160>0,B160,"") ->  | R163: =IF(O163="Entrée",C160,(IF(O163="Dépense",F160,""))) ->  | S163: =IF(AND(O163="Entrée",D160="Vrai"),1,0) -> 0 | T163: =(IF(O163="Dépense",G160,"")) -> 
M164: =IF(K161>0,A161,"") ->  | N164: =IF(K161>0,J161,"") ->  | O164: =IF(AND(K161>0,C161<>""),"Entrée",(IF(AND(K161>0,F161<>""),"Dépense",""))) ->  | P164: =IF(O164="Entrée",E161,(IF(O164="Dépense",H161,""))) ->  | Q164: =IF(K161>0,B161,"") ->  | R164: =IF(O164="Entrée",C161,(IF(O164="Dépense",F161,""))) ->  | S164: =IF(AND(O164="Entrée",D161="Vrai"),1,0) -> 0 | T164: =(IF(O164="Dépense",G161,"")) -> 
M165: =IF(K162>0,A162,"") ->  | N165: =IF(K162>0,J162,"") ->  | O165: =IF(AND(K162>0,C162<>""),"Entrée",(IF(AND(K162>0,F162<>""),"Dépense",""))) ->  | P165: =IF(O165="Entrée",E162,(IF(O165="Dépense",H162,""))) ->  | Q165: =IF(K162>0,B162,"") ->  | R165: =IF(O165="Entrée",C162,(IF(O165="Dépense",F162,""))) ->  | S165: =IF(AND(O165="Entrée",D162="Vrai"),1,0) -> 0 | T165: =(IF(O165="Dépense",G162,"")) -> 
M166: =IF(K163>0,A163,"") ->  | N166: =IF(K163>0,J163,"") ->  | O166: =IF(AND(K163>0,C163<>""),"Entrée",(IF(AND(K163>0,F163<>""),"Dépense",""))) ->  | P166: =IF(O166="Entrée",E163,(IF(O166="Dépense",H163,""))) ->  | Q166: =IF(K163>0,B163,"") ->  | R166: =IF(O166="Entrée",C163,(IF(O166="Dépense",F163,""))) ->  | S166: =IF(AND(O166="Entrée",D163="Vrai"),1,0) -> 0 | T166: =(IF(O166="Dépense",G163,"")) -> 
M167: =IF(K164>0,A164,"") ->  | N167: =IF(K164>0,J164,"") ->  | O167: =IF(AND(K164>0,C164<>""),"Entrée",(IF(AND(K164>0,F164<>""),"Dépense",""))) ->  | P167: =IF(O167="Entrée",E164,(IF(O167="Dépense",H164,""))) ->  | Q167: =IF(K164>0,B164,"") ->  | R167: =IF(O167="Entrée",C164,(IF(O167="Dépense",F164,""))) ->  | S167: =IF(AND(O167="Entrée",D164="Vrai"),1,0) -> 0 | T167: =(IF(O167="Dépense",G164,"")) -> 
M168: =IF(K165>0,A165,"") ->  | N168: =IF(K165>0,J165,"") ->  | O168: =IF(AND(K165>0,C165<>""),"Entrée",(IF(AND(K165>0,F165<>""),"Dépense",""))) ->  | P168: =IF(O168="Entrée",E165,(IF(O168="Dépense",H165,""))) ->  | Q168: =IF(K165>0,B165,"") ->  | R168: =IF(O168="Entrée",C165,(IF(O168="Dépense",F165,""))) ->  | S168: =IF(AND(O168="Entrée",D165="Vrai"),1,0) -> 0 | T168: =(IF(O168="Dépense",G165,"")) -> 
M169: =IF(K166>0,A166,"") ->  | N169: =IF(K166>0,J166,"") ->  | O169: =IF(AND(K166>0,C166<>""),"Entrée",(IF(AND(K166>0,F166<>""),"Dépense",""))) ->  | P169: =IF(O169="Entrée",E166,(IF(O169="Dépense",H166,""))) ->  | Q169: =IF(K166>0,B166,"") ->  | R169: =IF(O169="Entrée",C166,(IF(O169="Dépense",F166,""))) ->  | S169: =IF(AND(O169="Entrée",D166="Vrai"),1,0) -> 0 | T169: =(IF(O169="Dépense",G166,"")) -> 
M170: =IF(K167>0,A167,"") ->  | N170: =IF(K167>0,J167,"") ->  | O170: =IF(AND(K167>0,C167<>""),"Entrée",(IF(AND(K167>0,F167<>""),"Dépense",""))) ->  | P170: =IF(O170="Entrée",E167,(IF(O170="Dépense",H167,""))) ->  | Q170: =IF(K167>0,B167,"") ->  | R170: =IF(O170="Entrée",C167,(IF(O170="Dépense",F167,""))) ->  | S170: =IF(AND(O170="Entrée",D167="Vrai"),1,0) -> 0 | T170: =(IF(O170="Dépense",G167,"")) -> 
M171: =IF(K168>0,A168,"") ->  | N171: =IF(K168>0,J168,"") ->  | O171: =IF(AND(K168>0,C168<>""),"Entrée",(IF(AND(K168>0,F168<>""),"Dépense",""))) ->  | P171: =IF(O171="Entrée",E168,(IF(O171="Dépense",H168,""))) ->  | Q171: =IF(K168>0,B168,"") ->  | R171: =IF(O171="Entrée",C168,(IF(O171="Dépense",F168,""))) ->  | S171: =IF(AND(O171="Entrée",D168="Vrai"),1,0) -> 0 | T171: =(IF(O171="Dépense",G168,"")) -> 
M172: =IF(K169>0,A169,"") ->  | N172: =IF(K169>0,J169,"") ->  | O172: =IF(AND(K169>0,C169<>""),"Entrée",(IF(AND(K169>0,F169<>""),"Dépense",""))) ->  | P172: =IF(O172="Entrée",E169,(IF(O172="Dépense",H169,""))) ->  | Q172: =IF(K169>0,B169,"") ->  | R172: =IF(O172="Entrée",C169,(IF(O172="Dépense",F169,""))) ->  | S172: =IF(AND(O172="Entrée",D169="Vrai"),1,0) -> 0 | T172: =(IF(O172="Dépense",G169,"")) -> 
M173: =IF(K170>0,A170,"") ->  | N173: =IF(K170>0,J170,"") ->  | O173: =IF(AND(K170>0,C170<>""),"Entrée",(IF(AND(K170>0,F170<>""),"Dépense",""))) ->  | P173: =IF(O173="Entrée",E170,(IF(O173="Dépense",H170,""))) ->  | Q173: =IF(K170>0,B170,"") ->  | R173: =IF(O173="Entrée",C170,(IF(O173="Dépense",F170,""))) ->  | S173: =IF(AND(O173="Entrée",D170="Vrai"),1,0) -> 0 | T173: =(IF(O173="Dépense",G170,"")) -> 
M174: =IF(K171>0,A171,"") ->  | N174: =IF(K171>0,J171,"") ->  | O174: =IF(AND(K171>0,C171<>""),"Entrée",(IF(AND(K171>0,F171<>""),"Dépense",""))) ->  | P174: =IF(O174="Entrée",E171,(IF(O174="Dépense",H171,""))) ->  | Q174: =IF(K171>0,B171,"") ->  | R174: =IF(O174="Entrée",C171,(IF(O174="Dépense",F171,""))) ->  | S174: =IF(AND(O174="Entrée",D171="Vrai"),1,0) -> 0 | T174: =(IF(O174="Dépense",G171,"")) -> 
M175: =IF(K172>0,A172,"") ->  | N175: =IF(K172>0,J172,"") ->  | O175: =IF(AND(K172>0,C172<>""),"Entrée",(IF(AND(K172>0,F172<>""),"Dépense",""))) ->  | P175: =IF(O175="Entrée",E172,(IF(O175="Dépense",H172,""))) ->  | Q175: =IF(K172>0,B172,"") ->  | R175: =IF(O175="Entrée",C172,(IF(O175="Dépense",F172,""))) ->  | S175: =IF(AND(O175="Entrée",D172="Vrai"),1,0) -> 0 | T175: =(IF(O175="Dépense",G172,"")) -> 
M176: =IF(K173>0,A173,"") ->  | N176: =IF(K173>0,J173,"") ->  | O176: =IF(AND(K173>0,C173<>""),"Entrée",(IF(AND(K173>0,F173<>""),"Dépense",""))) ->  | P176: =IF(O176="Entrée",E173,(IF(O176="Dépense",H173,""))) ->  | Q176: =IF(K173>0,B173,"") ->  | R176: =IF(O176="Entrée",C173,(IF(O176="Dépense",F173,""))) ->  | S176: =IF(AND(O176="Entrée",D173="Vrai"),1,0) -> 0 | T176: =(IF(O176="Dépense",G173,"")) -> 
M177: =IF(K174>0,A174,"") ->  | N177: =IF(K174>0,J174,"") ->  | O177: =IF(AND(K174>0,C174<>""),"Entrée",(IF(AND(K174>0,F174<>""),"Dépense",""))) ->  | P177: =IF(O177="Entrée",E174,(IF(O177="Dépense",H174,""))) ->  | Q177: =IF(K174>0,B174,"") ->  | R177: =IF(O177="Entrée",C174,(IF(O177="Dépense",F174,""))) ->  | S177: =IF(AND(O177="Entrée",D174="Vrai"),1,0) -> 0 | T177: =(IF(O177="Dépense",G174,"")) -> 
M178: =IF(K175>0,A175,"") ->  | N178: =IF(K175>0,J175,"") ->  | O178: =IF(AND(K175>0,C175<>""),"Entrée",(IF(AND(K175>0,F175<>""),"Dépense",""))) ->  | P178: =IF(O178="Entrée",E175,(IF(O178="Dépense",H175,""))) ->  | Q178: =IF(K175>0,B175,"") ->  | R178: =IF(O178="Entrée",C175,(IF(O178="Dépense",F175,""))) ->  | S178: =IF(AND(O178="Entrée",D175="Vrai"),1,0) -> 0 | T178: =(IF(O178="Dépense",G175,"")) -> 
M179: =IF(K176>0,A176,"") ->  | N179: =IF(K176>0,J176,"") ->  | O179: =IF(AND(K176>0,C176<>""),"Entrée",(IF(AND(K176>0,F176<>""),"Dépense",""))) ->  | P179: =IF(O179="Entrée",E176,(IF(O179="Dépense",H176,""))) ->  | Q179: =IF(K176>0,B176,"") ->  | R179: =IF(O179="Entrée",C176,(IF(O179="Dépense",F176,""))) ->  | S179: =IF(AND(O179="Entrée",D176="Vrai"),1,0) -> 0 | T179: =(IF(O179="Dépense",G176,"")) -> 
M180: =IF(K177>0,A177,"") ->  | N180: =IF(K177>0,J177,"") ->  | O180: =IF(AND(K177>0,C177<>""),"Entrée",(IF(AND(K177>0,F177<>""),"Dépense",""))) ->  | P180: =IF(O180="Entrée",E177,(IF(O180="Dépense",H177,""))) ->  | Q180: =IF(K177>0,B177,"") ->  | R180: =IF(O180="Entrée",C177,(IF(O180="Dépense",F177,""))) ->  | S180: =IF(AND(O180="Entrée",D177="Vrai"),1,0) -> 0 | T180: =(IF(O180="Dépense",G177,"")) -> 
M181: =IF(K178>0,A178,"") ->  | N181: =IF(K178>0,J178,"") ->  | O181: =IF(AND(K178>0,C178<>""),"Entrée",(IF(AND(K178>0,F178<>""),"Dépense",""))) ->  | P181: =IF(O181="Entrée",E178,(IF(O181="Dépense",H178,""))) ->  | Q181: =IF(K178>0,B178,"") ->  | R181: =IF(O181="Entrée",C178,(IF(O181="Dépense",F178,""))) ->  | S181: =IF(AND(O181="Entrée",D178="Vrai"),1,0) -> 0 | T181: =(IF(O181="Dépense",G178,"")) -> 
M182: =IF(K179>0,A179,"") ->  | N182: =IF(K179>0,J179,"") ->  | O182: =IF(AND(K179>0,C179<>""),"Entrée",(IF(AND(K179>0,F179<>""),"Dépense",""))) ->  | P182: =IF(O182="Entrée",E179,(IF(O182="Dépense",H179,""))) ->  | Q182: =IF(K179>0,B179,"") ->  | R182: =IF(O182="Entrée",C179,(IF(O182="Dépense",F179,""))) ->  | S182: =IF(AND(O182="Entrée",D179="Vrai"),1,0) -> 0 | T182: =(IF(O182="Dépense",G179,"")) -> 
M183: =IF(K180>0,A180,"") ->  | N183: =IF(K180>0,J180,"") ->  | O183: =IF(AND(K180>0,C180<>""),"Entrée",(IF(AND(K180>0,F180<>""),"Dépense",""))) ->  | P183: =IF(O183="Entrée",E180,(IF(O183="Dépense",H180,""))) ->  | Q183: =IF(K180>0,B180,"") ->  | R183: =IF(O183="Entrée",C180,(IF(O183="Dépense",F180,""))) ->  | S183: =IF(AND(O183="Entrée",D180="Vrai"),1,0) -> 0 | T183: =(IF(O183="Dépense",G180,"")) -> 
M184: =IF(K181>0,A181,"") ->  | N184: =IF(K181>0,J181,"") ->  | O184: =IF(AND(K181>0,C181<>""),"Entrée",(IF(AND(K181>0,F181<>""),"Dépense",""))) ->  | P184: =IF(O184="Entrée",E181,(IF(O184="Dépense",H181,""))) ->  | Q184: =IF(K181>0,B181,"") ->  | R184: =IF(O184="Entrée",C181,(IF(O184="Dépense",F181,""))) ->  | S184: =IF(AND(O184="Entrée",D181="Vrai"),1,0) -> 0 | T184: =(IF(O184="Dépense",G181,"")) -> 
M185: =IF(K182>0,A182,"") ->  | N185: =IF(K182>0,J182,"") ->  | O185: =IF(AND(K182>0,C182<>""),"Entrée",(IF(AND(K182>0,F182<>""),"Dépense",""))) ->  | P185: =IF(O185="Entrée",E182,(IF(O185="Dépense",H182,""))) ->  | Q185: =IF(K182>0,B182,"") ->  | R185: =IF(O185="Entrée",C182,(IF(O185="Dépense",F182,""))) ->  | S185: =IF(AND(O185="Entrée",D182="Vrai"),1,0) -> 0 | T185: =(IF(O185="Dépense",G182,"")) -> 
M186: =IF(K183>0,A183,"") ->  | N186: =IF(K183>0,J183,"") ->  | O186: =IF(AND(K183>0,C183<>""),"Entrée",(IF(AND(K183>0,F183<>""),"Dépense",""))) ->  | P186: =IF(O186="Entrée",E183,(IF(O186="Dépense",H183,""))) ->  | Q186: =IF(K183>0,B183,"") ->  | R186: =IF(O186="Entrée",C183,(IF(O186="Dépense",F183,""))) ->  | S186: =IF(AND(O186="Entrée",D183="Vrai"),1,0) -> 0 | T186: =(IF(O186="Dépense",G183,"")) -> 
M187: =IF(K184>0,A184,"") ->  | N187: =IF(K184>0,J184,"") ->  | O187: =IF(AND(K184>0,C184<>""),"Entrée",(IF(AND(K184>0,F184<>""),"Dépense",""))) ->  | P187: =IF(O187="Entrée",E184,(IF(O187="Dépense",H184,""))) ->  | Q187: =IF(K184>0,B184,"") ->  | R187: =IF(O187="Entrée",C184,(IF(O187="Dépense",F184,""))) ->  | S187: =IF(AND(O187="Entrée",D184="Vrai"),1,0) -> 0 | T187: =(IF(O187="Dépense",G184,"")) -> 
M188: =IF(K185>0,A185,"") ->  | N188: =IF(K185>0,J185,"") ->  | O188: =IF(AND(K185>0,C185<>""),"Entrée",(IF(AND(K185>0,F185<>""),"Dépense",""))) ->  | P188: =IF(O188="Entrée",E185,(IF(O188="Dépense",H185,""))) ->  | Q188: =IF(K185>0,B185,"") ->  | R188: =IF(O188="Entrée",C185,(IF(O188="Dépense",F185,""))) ->  | S188: =IF(AND(O188="Entrée",D185="Vrai"),1,0) -> 0 | T188: =(IF(O188="Dépense",G185,"")) -> 
M189: =IF(K186>0,A186,"") ->  | N189: =IF(K186>0,J186,"") ->  | O189: =IF(AND(K186>0,C186<>""),"Entrée",(IF(AND(K186>0,F186<>""),"Dépense",""))) ->  | P189: =IF(O189="Entrée",E186,(IF(O189="Dépense",H186,""))) ->  | Q189: =IF(K186>0,B186,"") ->  | R189: =IF(O189="Entrée",C186,(IF(O189="Dépense",F186,""))) ->  | S189: =IF(AND(O189="Entrée",D186="Vrai"),1,0) -> 0 | T189: =(IF(O189="Dépense",G186,"")) -> 
M190: =IF(K187>0,A187,"") ->  | N190: =IF(K187>0,J187,"") ->  | O190: =IF(AND(K187>0,C187<>""),"Entrée",(IF(AND(K187>0,F187<>""),"Dépense",""))) ->  | P190: =IF(O190="Entrée",E187,(IF(O190="Dépense",H187,""))) ->  | Q190: =IF(K187>0,B187,"") ->  | R190: =IF(O190="Entrée",C187,(IF(O190="Dépense",F187,""))) ->  | S190: =IF(AND(O190="Entrée",D187="Vrai"),1,0) -> 0 | T190: =(IF(O190="Dépense",G187,"")) -> 
M191: =IF(K188>0,A188,"") ->  | N191: =IF(K188>0,J188,"") ->  | O191: =IF(AND(K188>0,C188<>""),"Entrée",(IF(AND(K188>0,F188<>""),"Dépense",""))) ->  | P191: =IF(O191="Entrée",E188,(IF(O191="Dépense",H188,""))) ->  | Q191: =IF(K188>0,B188,"") ->  | R191: =IF(O191="Entrée",C188,(IF(O191="Dépense",F188,""))) ->  | S191: =IF(AND(O191="Entrée",D188="Vrai"),1,0) -> 0 | T191: =(IF(O191="Dépense",G188,"")) -> 
M192: =IF(K189>0,A189,"") ->  | N192: =IF(K189>0,J189,"") ->  | O192: =IF(AND(K189>0,C189<>""),"Entrée",(IF(AND(K189>0,F189<>""),"Dépense",""))) ->  | P192: =IF(O192="Entrée",E189,(IF(O192="Dépense",H189,""))) ->  | Q192: =IF(K189>0,B189,"") ->  | R192: =IF(O192="Entrée",C189,(IF(O192="Dépense",F189,""))) ->  | S192: =IF(AND(O192="Entrée",D189="Vrai"),1,0) -> 0 | T192: =(IF(O192="Dépense",G189,"")) -> 
M193: =IF(K190>0,A190,"") ->  | N193: =IF(K190>0,J190,"") ->  | O193: =IF(AND(K190>0,C190<>""),"Entrée",(IF(AND(K190>0,F190<>""),"Dépense",""))) ->  | P193: =IF(O193="Entrée",E190,(IF(O193="Dépense",H190,""))) ->  | Q193: =IF(K190>0,B190,"") ->  | R193: =IF(O193="Entrée",C190,(IF(O193="Dépense",F190,""))) ->  | S193: =IF(AND(O193="Entrée",D190="Vrai"),1,0) -> 0 | T193: =(IF(O193="Dépense",G190,"")) -> 
M194: =IF(K191>0,A191,"") ->  | N194: =IF(K191>0,J191,"") ->  | O194: =IF(AND(K191>0,C191<>""),"Entrée",(IF(AND(K191>0,F191<>""),"Dépense",""))) ->  | P194: =IF(O194="Entrée",E191,(IF(O194="Dépense",H191,""))) ->  | Q194: =IF(K191>0,B191,"") ->  | R194: =IF(O194="Entrée",C191,(IF(O194="Dépense",F191,""))) ->  | S194: =IF(AND(O194="Entrée",D191="Vrai"),1,0) -> 0 | T194: =(IF(O194="Dépense",G191,"")) -> 
M195: =IF(K192>0,A192,"") ->  | N195: =IF(K192>0,J192,"") ->  | O195: =IF(AND(K192>0,C192<>""),"Entrée",(IF(AND(K192>0,F192<>""),"Dépense",""))) ->  | P195: =IF(O195="Entrée",E192,(IF(O195="Dépense",H192,""))) ->  | Q195: =IF(K192>0,B192,"") ->  | R195: =IF(O195="Entrée",C192,(IF(O195="Dépense",F192,""))) ->  | S195: =IF(AND(O195="Entrée",D192="Vrai"),1,0) -> 0 | T195: =(IF(O195="Dépense",G192,"")) -> 
M196: =IF(K193>0,A193,"") ->  | N196: =IF(K193>0,J193,"") ->  | O196: =IF(AND(K193>0,C193<>""),"Entrée",(IF(AND(K193>0,F193<>""),"Dépense",""))) ->  | P196: =IF(O196="Entrée",E193,(IF(O196="Dépense",H193,""))) ->  | Q196: =IF(K193>0,B193,"") ->  | R196: =IF(O196="Entrée",C193,(IF(O196="Dépense",F193,""))) ->  | S196: =IF(AND(O196="Entrée",D193="Vrai"),1,0) -> 0 | T196: =(IF(O196="Dépense",G193,"")) -> 
M197: =IF(K194>0,A194,"") ->  | N197: =IF(K194>0,J194,"") ->  | O197: =IF(AND(K194>0,C194<>""),"Entrée",(IF(AND(K194>0,F194<>""),"Dépense",""))) ->  | P197: =IF(O197="Entrée",E194,(IF(O197="Dépense",H194,""))) ->  | Q197: =IF(K194>0,B194,"") ->  | R197: =IF(O197="Entrée",C194,(IF(O197="Dépense",F194,""))) ->  | S197: =IF(AND(O197="Entrée",D194="Vrai"),1,0) -> 0 | T197: =(IF(O197="Dépense",G194,"")) -> 
M198: =IF(K195>0,A195,"") ->  | N198: =IF(K195>0,J195,"") ->  | O198: =IF(AND(K195>0,C195<>""),"Entrée",(IF(AND(K195>0,F195<>""),"Dépense",""))) ->  | P198: =IF(O198="Entrée",E195,(IF(O198="Dépense",H195,""))) ->  | Q198: =IF(K195>0,B195,"") ->  | R198: =IF(O198="Entrée",C195,(IF(O198="Dépense",F195,""))) ->  | S198: =IF(AND(O198="Entrée",D195="Vrai"),1,0) -> 0 | T198: =(IF(O198="Dépense",G195,"")) -> 
M199: =IF(K196>0,A196,"") ->  | N199: =IF(K196>0,J196,"") ->  | O199: =IF(AND(K196>0,C196<>""),"Entrée",(IF(AND(K196>0,F196<>""),"Dépense",""))) ->  | P199: =IF(O199="Entrée",E196,(IF(O199="Dépense",H196,""))) ->  | Q199: =IF(K196>0,B196,"") ->  | R199: =IF(O199="Entrée",C196,(IF(O199="Dépense",F196,""))) ->  | S199: =IF(AND(O199="Entrée",D196="Vrai"),1,0) -> 0 | T199: =(IF(O199="Dépense",G196,"")) -> 
M200: =IF(K197>0,A197,"") ->  | N200: =IF(K197>0,J197,"") ->  | O200: =IF(AND(K197>0,C197<>""),"Entrée",(IF(AND(K197>0,F197<>""),"Dépense",""))) ->  | P200: =IF(O200="Entrée",E197,(IF(O200="Dépense",H197,""))) ->  | Q200: =IF(K197>0,B197,"") ->  | R200: =IF(O200="Entrée",C197,(IF(O200="Dépense",F197,""))) ->  | S200: =IF(AND(O200="Entrée",D197="Vrai"),1,0) -> 0 | T200: =(IF(O200="Dépense",G197,"")) -> 
... 1554 more rows

Sheet Contôle
A1: Date | B1: Agent | C1: Mois | D1: Commentaire | E1: COFFRE 500 | F1: CAISSE 500 | G1: TOTAL 500 | H1: COFFRE 200 | I1: CAISSE 200 | J1: TOTAL 200 | K1: COFFRE 100 | L1: CAISSE 100 | M1: TOTAL 100 | N1: COFFRE 50 | O1: CAISSE 50 | P1: TOTAL 50 | Q1: COFFRE 20 | R1: CAISSE 20 | S1: TOTAL 20 | T1: COFFRE 10 | U1: CAISSE 10 | V1: TOTAL 10 | W1: COFFRE 5 | X1: CAISSE 5 | Y1: TOTAL 5 | Z1: COFFRE 2 | AA1: CAISSE 2 | AB1: TOTAL 2 | AC1: COFFRE 1 | AD1: CAISSE 1 | AE1: TOTAL 1 | AF1: COFFRE 0.5 | AG1: CAISSE 0.5 | AH1: TOTAL 0.5 | AI1: COFFRE 0.2 | AJ1: CAISSE 0.2 | AK1: TOTAL 0.2 | AL1: COFFRE 0.1 | AM1: CAISSE 0.1 | AN1: TOTAL 0.1 | AO1: COFFRE 0.05 | AP1: CAISSE 0.05 | AQ1: TOTAL 0.05 | AR1: COFFRE 0.02 | AS1: CAISSE 0.02 | AT1: TOTAL 0.02 | AU1: COFFRE 0.01 | AV1: CAISSE 0.01 | AW1: TOTAL 0.01 | AX1: Total
A2: 2018-03-16 | B2: Paul | K2: 5 | M2: 500 | N2: 26 | P2: 1300 | Q2: 20 | R2: 16 | S2: 720 | X2: 11 | Y2: 55 | Z2: 50 | AA2: 8 | AB2: 116 | AC2: 200 | AD2: 25 | AE2: 225 | AF2: 160 | AG2: 29 | AH2: 94.5 | AI2: 120 | AJ2: 63 | AK2: 36.6 | AL2: 40 | AM2: 59 | AN2: 9.9 | AO2: 188 | AP2: 64 | AQ2: 12.6 | AR2: 50 | AS2: 5 | AT2: 1.1 | AU2: 50 | AV2: 13 | AW2: 0.63 | AX2: =Tcontrôle[[#This Row],[TOTAL 500]]+Tcontrôle[[#This Row],[TOTAL 200]]+Tcontrôle[[#This Row],[TOTAL 100]]+Tcontrôle[[#This Row],[TOTAL 50]]+Tcontrôle[[#This Row],[TOTAL 20]]+Tcontrôle[[#This Row],[TOTAL 10]]+Tcontrôle[[#This Row],[TOTAL 5]]+Tcontrôle[[#This Row],[TOTAL 2]]+Tcontrôle[[#This Row],[TOTAL 1]]+Tcontrôle[[#This Row],[TOTAL 0.5]]+Tcontrôle[[#This Row],[TOTAL 0.2]]+Tcontrôle[[#This Row],[TOTAL 0.1]]+Tcontrôle[[#This Row],[TOTAL 0.05]]+Tcontrôle[[#This Row],[TOTAL 0.02]]+Tcontrôle[[#This Row],[TOTAL 0.01]] -> 3071.33
A3: 2018-03-30 | B3: Paul | E3: 0 | F3: 0 | G3: 0 | H3: 0 | I3: 0 | J3: 0 | K3: 5 | L3: 1 | M3: 600 | N3: 26 | O3: 4 | P3: 1500 | Q3: 20 | R3: 15 | S3: 700 | T3: 0 | U3: 0 | V3: 0 | W3: 0 | X3: 8 | Y3: 40 | Z3: 50 | AA3: 8 | AB3: 116 | AC3: 200 | AD3: 24 | AE3: 224 | AF3: 160 | AG3: 28 | AH3: 94 | AI3: 120 | AJ3: 58 | AK3: 35.6 | AL3: 40 | AM3: 62 | AN3: 10.2 | AO3: 188 | AP3: 66 | AQ3: 12.7 | AR3: 50 | AS3: 4 | AT3: 1.08 | AU3: 50 | AV3: 10 | AW3: 0.6 | AX3: =Tcontrôle[[#This Row],[TOTAL 500]]+Tcontrôle[[#This Row],[TOTAL 200]]+Tcontrôle[[#This Row],[TOTAL 100]]+Tcontrôle[[#This Row],[TOTAL 50]]+Tcontrôle[[#This Row],[TOTAL 20]]+Tcontrôle[[#This Row],[TOTAL 10]]+Tcontrôle[[#This Row],[TOTAL 5]]+Tcontrôle[[#This Row],[TOTAL 2]]+Tcontrôle[[#This Row],[TOTAL 1]]+Tcontrôle[[#This Row],[TOTAL 0.5]]+Tcontrôle[[#This Row],[TOTAL 0.2]]+Tcontrôle[[#This Row],[TOTAL 0.1]]+Tcontrôle[[#This Row],[TOTAL 0.05]]+Tcontrôle[[#This Row],[TOTAL 0.02]]+Tcontrôle[[#This Row],[TOTAL 0.01]] -> 3334.18
A4: 2018-04-06 | B4: Paul | E4: 0 | F4: 0 | G4: 0 | H4: 0 | I4: 0 | J4: 0 | K4: 0 | L4: 0 | M4: 0 | N4: 34 | O4: 0 | P4: 1700 | Q4: 38 | R4: 0 | S4: 760 | T4: 0 | U4: 2 | V4: 20 | W4: 0 | X4: 9 | Y4: 45 | Z4: 50 | AA4: 3 | AB4: 106 | AC4: 200 | AD4: 21 | AE4: 221 | AF4: 160 | AG4: 26 | AH4: 93 | AI4: 120 | AJ4: 54 | AK4: 34.8 | AL4: 40 | AM4: 61 | AN4: 10.1 | AO4: 188 | AP4: 60 | AQ4: 12.4 | AR4: 50 | AS4: 4 | AT4: 1.08 | AU4: 50 | AV4: 6 | AW4: 0.56 | AX4: =Tcontrôle[[#This Row],[TOTAL 500]]+Tcontrôle[[#This Row],[TOTAL 200]]+Tcontrôle[[#This Row],[TOTAL 100]]+Tcontrôle[[#This Row],[TOTAL 50]]+Tcontrôle[[#This Row],[TOTAL 20]]+Tcontrôle[[#This Row],[TOTAL 10]]+Tcontrôle[[#This Row],[TOTAL 5]]+Tcontrôle[[#This Row],[TOTAL 2]]+Tcontrôle[[#This Row],[TOTAL 1]]+Tcontrôle[[#This Row],[TOTAL 0.5]]+Tcontrôle[[#This Row],[TOTAL 0.2]]+Tcontrôle[[#This Row],[TOTAL 0.1]]+Tcontrôle[[#This Row],[TOTAL 0.05]]+Tcontrôle[[#This Row],[TOTAL 0.02]]+Tcontrôle[[#This Row],[TOTAL 0.01]] -> 3003.94
A5: 2018-04-12 | B5: Paul | K5: 1 | L5: 0 | M5: 100 | N5: 38 | O5: 0 | P5: 1900 | Q5: 38 | R5: 1 | S5: 780 | T5: 0 | U5: 1 | V5: 10 | W5: 0 | X5: 8 | Y5: 40 | Z5: 50 | AA5: 1 | AB5: 102 | AC5: 200 | AD5: 19 | AE5: 219 | AF5: 160 | AG5: 25 | AH5: 92.5 | AI5: 120 | AJ5: 53 | AK5: 34.6 | AL5: 40 | AM5: 62 | AN5: 10.2 | AO5: 188 | AP5: 60 | AQ5: 12.4 | AR5: 50 | AS5: 2 | AT5: 1.04 | AU5: 50 | AV5: 6 | AW5: 0.56 | AX5: =Tcontrôle[[#This Row],[TOTAL 500]]+Tcontrôle[[#This Row],[TOTAL 200]]+Tcontrôle[[#This Row],[TOTAL 100]]+Tcontrôle[[#This Row],[TOTAL 50]]+Tcontrôle[[#This Row],[TOTAL 20]]+Tcontrôle[[#This Row],[TOTAL 10]]+Tcontrôle[[#This Row],[TOTAL 5]]+Tcontrôle[[#This Row],[TOTAL 2]]+Tcontrôle[[#This Row],[TOTAL 1]]+Tcontrôle[[#This Row],[TOTAL 0.5]]+Tcontrôle[[#This Row],[TOTAL 0.2]]+Tcontrôle[[#This Row],[TOTAL 0.1]]+Tcontrôle[[#This Row],[TOTAL 0.05]]+Tcontrôle[[#This Row],[TOTAL 0.02]]+Tcontrôle[[#This Row],[TOTAL 0.01]] -> 3302.3
A6: 2018-04-19 | B6: Paul | K6: 1 | L6: 0 | M6: 100 | N6: 40 | O6: 0 | P6: 2000 | Q6: 45 | R6: 4 | S6: 980 | T6: 0 | U6: 0 | V6: 0 | W6: 0 | X6: 6 | Y6: 30 | Z6: 50 | AA6: 1 | AB6: 102 | AC6: 200 | AD6: 20 | AE6: 220 | AF6: 160 | AG6: 22 | AH6: 91 | AI6: 120 | AJ6: 63 | AK6: 36.6 | AL6: 40 | AM6: 68 | AN6: 10.8 | AO6: 188 | AP6: 62 | AQ6: 12.5 | AR6: 50 | AS6: 1 | AT6: 1.02 | AU6: 50 | AV6: 4 | AW6: 0.54 | AX6: =Tcontrôle[[#This Row],[TOTAL 500]]+Tcontrôle[[#This Row],[TOTAL 200]]+Tcontrôle[[#This Row],[TOTAL 100]]+Tcontrôle[[#This Row],[TOTAL 50]]+Tcontrôle[[#This Row],[TOTAL 20]]+Tcontrôle[[#This Row],[TOTAL 10]]+Tcontrôle[[#This Row],[TOTAL 5]]+Tcontrôle[[#This Row],[TOTAL 2]]+Tcontrôle[[#This Row],[TOTAL 1]]+Tcontrôle[[#This Row],[TOTAL 0.5]]+Tcontrôle[[#This Row],[TOTAL 0.2]]+Tcontrôle[[#This Row],[TOTAL 0.1]]+Tcontrôle[[#This Row],[TOTAL 0.05]]+Tcontrôle[[#This Row],[TOTAL 0.02]]+Tcontrôle[[#This Row],[TOTAL 0.01]] -> 3584.46
A7: 2018-04-27 | B7: Paul | E7: 0 | G7: 0 | H7: 0 | J7: 0 | K7: 1 | M7: 100 | N7: 55 | P7: 2750 | Q7: 48 | S7: 960 | T7: 0 | U7: 1 | V7: 10 | W7: 0 | X7: 5 | Y7: 25 | Z7: 50 | AA7: 0 | AB7: 100 | AC7: 200 | AD7: 15 | AE7: 215 | AF7: 160 | AG7: 19 | AH7: 89 | AI7: 120 | AJ7: 58 | AK7: 35,6 | AL7: 40 | AM7: 61 | AN7: 10,1 | AO7: 150 | AP7: 75 | AQ7: 11,25 | AR7: 50 | AS7: 0 | AT7: 1 | AU7: 50 | AV7: 2 | AW7: 0,52 | AX7: =Tcontrôle[[#This Row],[TOTAL 500]]+Tcontrôle[[#This Row],[TOTAL 200]]+Tcontrôle[[#This Row],[TOTAL 100]]+Tcontrôle[[#This Row],[TOTAL 50]]+Tcontrôle[[#This Row],[TOTAL 20]]+Tcontrôle[[#This Row],[TOTAL 10]]+Tcontrôle[[#This Row],[TOTAL 5]]+Tcontrôle[[#This Row],[TOTAL 2]]+Tcontrôle[[#This Row],[TOTAL 1]]+Tcontrôle[[#This Row],[TOTAL 0.5]]+Tcontrôle[[#This Row],[TOTAL 0.2]]+Tcontrôle[[#This Row],[TOTAL 0.1]]+Tcontrôle[[#This Row],[TOTAL 0.05]]+Tcontrôle[[#This Row],[TOTAL 0.02]]+Tcontrôle[[#This Row],[TOTAL 0.01]] -> 4307.47

Sheet liste
A1: Agent | C1: Concerne
A2: Géraldine | C2: Aline
A3: Mélanie | C3: Géraldine
A4: Nadine M | C4: Gilles
A5: Paul | C5: Hanane
C6: Marie
C7: Marie Claude
C8: Mélanie
C9: Michelle
C10: Nadine M
C11: Nadine R
C12: Paul
C13: Sandrine
C14: Vincent
